Workbook

Sheet 1. Information Sheet
A1: Back to Index | V1: a
B2: INCENTIVE REGULATION MODEL FOR 2019 FILERS
N12: Version | O12: 1
F14: Utility Name | G14: Alectra Utilities - Horizon Utilites Rate Zone
F16: Service Territory
F18: Assigned EB Number | G18: EB-2018-0016
F20: Name of Contact and Title | G20: Indy J. Butany-DeSouza, Vice-President, Regulatory Affairs
F22: Phone Number | G22: 905-821-5727
F24: Email Address | G24: indy.butany@alectrautilities.com
F26: We are applying for rates effective | G26: 2019-01-01
F28: Rate-Setting Method | G28: Price Cap IR
B30: Please indicate in which Rate Year the Group 1 accounts were last cleared1 | G30: 2017
B32: Please indicate the last Cost of Service Re-Basing Year | G32: 2018
C35: Notes
D37: Pale gray cells represent input cells.
D39: Pale blue cells represent drop-down lists.
D41: White cells contain fixed values, automatically generated values or formulae.
B44: Note: 1. Rate year of application

Sheet 3. Continuity Schedule
A1: Back to Index | B1: Back to Index | CU1: FALSE
C2: =+'1. Information Sheet'!B2 -> INCENTIVE REGULATION MODEL FOR 2019 FILERS | CU2: FALSE
CU3: FALSE
CU4: FALSE
CU5: FALSE
CU6: FALSE
CU7: FALSE
CU8: FALSE
CU9: FALSE
CU10: TRUE
CU11: TRUE
C12: Please complete the following continuity schedule for the following Deferral/Variance Accounts. Enter information into green cells only. Column CE shoudl match the latest 2.1.7 RRR filing. When inputting balances in the continuity schedule, Account 1580 RSVA - Wholesale Market Service Charge is to exclude any amounts relating to CBR. The CBR amounts are to be entered separately in the Class A and Class B 1580 sub-accounts. Only Class B amounts are to be disposed. Class A amounts are not to be disposed. If you have received approval to dispose of balances from prior years, the starting point for entries in the schedule below will be the balance sheet date as per your general ledger for which you received approval. For example, if in the 2016 EDR process (CoS or IRM) you received approval for the December 31, 2014 balances, the starting point for your entries below should be the 2013 year. This will allow for the correct starting point for the 2014 opening balance columns for both principal and interest. Please refer to the footnotes for further instructions.
E16: 2010 | O16: 2011 | Y16: 2012 | AI16: 2013 | AS16: 2014 | BC16: 2015 | BM16: 2016 | BW16: 2017 | CG16: 2018 | CK16: Projected Interest on Dec-31-17 Balances | CO16: 2.1.7 RRR
C17: Account Descriptions | D17: Account Number | E17: Opening Principal Amounts as of Jan 1, 2010 | F17: Transactions2 Debit / (Credit) during 2010 | G17: OEB-Approved Disposition during 2010 | H17: Principal Adjustments1 during 2010 | I17: Closing Principal Balance as of Dec 31, 2010 | J17: Opening Interest Amounts as of Jan 1, 2010 | K17: Interest Jan 1 to Dec 31, 2010 | L17: OEB-Approved Disposition during 2010 | M17: Interest Adjustments1 during 2010 | N17: Closing Interest Amounts as of Dec 31, 2010 | O17: Opening Principal Amounts as of Jan 1, 2011 | P17: Transactions2 Debit / (Credit) during 2011 | Q17: OEB-Approved Disposition during 2011 | R17: Principal Adjustments1 during 2011 | S17: Closing Principal Balance as of Dec 31, 2011 | T17: Opening Interest Amounts as of Jan 1, 2011 | U17: Interest Jan 1 to Dec 31, 2011 | V17: OEB-Approved Disposition during 2011 | W17: Interest Adjustments1 during 2011 | X17: Closing Interest Amounts as of Dec 31, 2011 | Y17: Opening Principal Amounts as of Jan 1, 2012 | Z17: Transactions2 Debit / (Credit) during 2012 | AA17: OEB-Approved Disposition during 2012 | AB17: Principal Adjustments1 during 2012 | AC17: Closing Principal Balance as of Dec 31, 2012 | AD17: Opening Interest Amounts as of Jan 1, 2012 | AE17: Interest Jan 1 to Dec 31, 2012 | AF17: OEB-Approved Disposition during 2012 | AG17: Interest Adjustments1 during 2012 | AH17: Closing Interest Amounts as of Dec 31, 2012 | AI17: Opening Principal Amounts as of Jan 1, 2013 | AJ17: Transactions2 Debit / (Credit) during 2013 | AK17: OEB-Approved Disposition during 2013 | AL17: Principal Adjustments1 during 2013 | AM17: Closing Principal Balance as of Dec 31, 2013 | AN17: Opening Interest Amounts as of Jan 1, 2013 | AO17: Interest Jan 1 to Dec 31, 2013 | AP17: OEB-Approved Disposition during 2013 | AQ17: Interest Adjustments1 during 2013 | AR17: Closing Interest Amounts as of Dec 31, 2013 | AS17: Opening Principal Amounts as of Jan 1, 2014 | AT17: Transactions2 Debit / (Credit) during 2014 | AU17: OEB-Approved Disposition during 2014 | AV17: Principal Adjustments1 during 2014 | AW17: Closing Principal Balance as of Dec 31, 2014 | AX17: Opening Interest Amounts as of Jan 1, 2014 | AY17: Interest Jan 1 to Dec 31. 2014 | AZ17: OEB-Approved Disposition during 2014 | BA17: Interest Adjustments1 during 2014 | BB17: Closing Interest Amounts as of Dec 31, 2014 | BC17: Opening Principal Amounts as of Jan 1, 2015 | BD17: Transactions2 Debit / (Credit) during 2015 | BE17: OEB-Approved Disposition during 2015 | BF17: Principal Adjustments1 during 2015 | BG17: Closing Principal Balance as of Dec 31, 15 | BH17: Opening Interest Amounts as of Jan 1, 15 | BI17: Interest Jan 1 to Dec 31, 15 | BJ17: OEB-Approved Disposition during 2015 | BK17: Interest Adjustments1 during 2015 | BL17: Closing Interest Amounts as of Dec 31, 15 | BM17: Opening Principal Amounts as of Jan 1, 2016 | BN17: Transactions2 Debit / (Credit) during 2016 | BO17: OEB-Approved Disposition during 2016 | BP17: Principal Adjustments1 during 2016 | BQ17: Closing Principal Balance as of Dec 31, 16 | BR17: Opening Interest Amounts as of Jan 1, 16 | BS17: Interest Jan 1 to Dec 31, 16 | BT17: OEB-Approved Disposition during 2016 | BU17: Interest Adjustments1 during 2016 | BV17: Closing Interest Amounts as of Dec 31, 16 | BW17: Opening Principal Amounts as of Jan 1, 2017 | BX17: Transactions2 Debit / (Credit) during 2017 | BY17: OEB-Approved Disposition during 2017 | BZ17: Principal Adjustments1 during 2017 | CA17: Closing Principal Balance as of Dec 31, 17 | CB17: Opening Interest Amounts as of Jan 1, 17 | CC17: Interest Jan 1 to Dec 31, 17 | CD17: OEB-Approved Disposition during 2017 | CE17: Interest Adjustments1 during 2017 | CF17: Closing Interest Amounts as of Dec 31, 17 | CG17: Principal Disposition during 2018 - instructed by OEB | CH17: Interest Disposition during 2018 - instructed by OEB | CI17: Closing Principal Balances as of Dec 31, 2017 Adjusted for Dispositions during 2018 | CJ17: Closing Interest Balances as of Dec 31, 2017 Adjusted for Disposition in 2018 | CK17: Projected Interest from January 1, 2018 to January 31, 2019 on December 31, 2017 balance adjusted for disposition during 2019 3 | CL17: Projected Interest from January 1, 2018 to April 30, 2018 on Dec 31 -17 balance adjusted for disposition during 2018 3 | CM17: Total Interest | CN17: Total Claim | CO17: As of Dec 31-17 | CP17: Variance RRR vs. 2017 Balance (Principal + Interest)
CN19: Claim before Forecasted Transactions
C20: Group 1 Accounts
C21: LV Variance Account | D21: 1550 | I21: =E21+F21-G21+H21 -> 0 | N21: =J21+K21-L21+M21 -> 0 | O21: =I21 -> 0 | P21: 115767.8 | S21: =O21+P21-Q21+SUM(R21:R21) -> 115767.8 | T21: =N21 -> 0 | U21: 1571.36 | X21: =T21+U21-V21+W21 -> 1571.36 | Y21: =S21 -> 115767.8 | Z21: 16682.93 | AC21: =Y21+Z21-AA21+SUM(AB21:AB21) -> 132450.73 | AD21: =X21 -> 1571.36 | AE21: 1800.8 | AH21: =AD21+AE21-AF21+AG21 -> 3372.16 | AI21: =AC21 -> 132450.73 | AJ21: 288057.23 | AK21: 117339.16 | AM21: =AI21+AJ21-AK21+SUM(AL21:AL21) -> 303168.8 | AN21: =AH21 -> 3372.16 | AO21: 2247.76 | AP21: 1702 | AR21: =AN21+AO21-AP21+AQ21 -> 3917.92 | AS21: =AM21 -> 303168.8 | AT21: 287709.57 | AU21: 15111.23 | AW21: =AS21+AT21-AU21+SUM(AV21:AV21) -> 575767.14 | AX21: =AR21 -> 3917.92 | AY21: 6269.86 | AZ21: 1892.3 | BB21: =AX21+AY21-AZ21+BA21 -> 8295.48 | BC21: =AW21 -> 575767.14 | BD21: 471028.05 | BE21: 288057.57 | BG21: =BC21+BD21-BE21+SUM(BF21:BF21) -> 758737.62 | BH21: =BB21 -> 8295.48 | BI21: 5408.92 | BJ21: 6482.2 | BL21: =BH21+BI21-BJ21+BK21 -> 7222.2 | BM21: =BG21 -> 758737.62 | BN21: 552752.01 | BO21: 287709.57 | BQ21: =BM21+BN21-BO21+SUM(BP21:BP21) -> 1023780.06 | BR21: =BL21 -> 7222.2 | BS21: 8152.771092 | BT21: 5244.22 | BV21: =BR21+BS21-BT21+BU21 -> 10130.75109 | BW21: =BQ21 -> 1023780.06 | BX21: 586395.17 | BY21: 471028.05 | CA21: =BW21+BX21-BY21+SUM(BZ21:BZ21) -> 1139147.18 | CB21: =BV21 -> 10130.75109 | CC21: 10283.85 | CD21: 7159.29 | CF21: =CB21+CC21-CD21+CE21 -> 13255.31109 | CG21: 552752.01 | CH21: 9051.733202 | CI21: =CA21-CG21 -> 586395.17 | CJ21: =CF21-CH21 -> 4203.57789 | CK21: =CI21*((1.5%*25%)+(1.89%*50%)+2.17%/4+2.45%/12) -> 12118.83351 | CM21: =CJ21+CK21+CL21 -> 16322.4114 | CN21: =SUM(CI21:CL21) -> 602717.5814 | CO21: 1152402.49 | CP21: =CO21-SUM(CA21,CF21) -> -0.00109166652
C22: Smart Metering Entity Charge Variance Account | D22: 1551 | I22: =E22+F22-G22+H22 -> 0 | N22: =J22+K22-L22+M22 -> 0 | O22: =I22 -> 0 | P22: 0 | S22: 0 | T22: 0 | U22: 0 | X22: =T22+U22-V22+W22 -> 0 | Y22: 0 | AC22: =Y22+Z22-AA22+SUM(AB22:AB22) -> 0 | AD22: =X22 -> 0 | AH22: =AD22+AE22-AF22+AG22 -> 0 | AI22: 0 | AJ22: -17910.51 | AM22: -17910.51 | AN22: 0 | AO22: -71.11 | AR22: =AN22+AO22-AP22+AQ22 -> -71.11 | AS22: -17910.51 | AT22: -18781.05 | AU22: 0 | AW22: -36691.56 | AX22: -71.11 | AY22: -365.06 | AZ22: 0 | BB22: =AX22+AY22-AZ22+BA22 -> -436.17 | BC22: -36691.56 | BD22: -22681.35 | BE22: -17910.51 | BG22: -41462.4 | BH22: -436.17 | BI22: -330.72 | BJ22: -334.394497 | BL22: =BH22+BI22-BJ22+BK22 -> -432.495503 | BM22: =BG22 -> -41462.4 | BN22: -23673.09 | BO22: -18781.05 | BQ22: =BM22+BN22-BO22+SUM(BP22:BP22) -> -46354.44 | BR22: -432.495503 | BS22: -366.1335333 | BT22: -325.7431162 | BV22: =BR22+BS22-BT22+BU22 -> -472.8859201 | BW22: =BQ22 -> -46354.44 | BX22: -27963.92 | BY22: -22681.35 | CA22: =BW22+BX22-BY22+SUM(BZ22:BZ22) -> -51637.01 | CB22: -472.8859201 | CC22: -432.21 | CD22: -356.25 | CF22: =CB22+CC22-CD22+CE22 -> -548.8459201 | CG22: -23673.09 | CH22: -377.0390813 | CI22: =CA22-CG22 -> -27963.92 | CJ22: =CF22-CH22 -> -171.8068388 | CK22: =CI22*((1.5%*25%)+(1.89%*50%)+2.17%/4+2.45%/12) -> -577.9210133 | CM22: =CJ22+CK22+CL22 -> -749.7278521 | CN22: =SUM(CI22:CL22) -> -28713.64785 | CO22: -52185.86 | CP22: =CO22-SUM(CA22,CF22) -> -0.004079917751
C23: RSVA - Wholesale Market Service Charge | D23: 1580 | I23: =E23+F23-G23+H23 -> 0 | N23: =J23+K23-L23+M23 -> 0 | O23: =I23 -> 0 | P23: -5518757.61 | S23: =O23+P23-Q23+SUM(R23:R23) -> -5518757.61 | T23: 0 | U23: -58243.99 | X23: =T23+U23-V23+W23 -> -58243.99 | Y23: -5518757.61 | Z23: -6544300.15 | AC23: =Y23+Z23-AA23+SUM(AB23:AB23) -> -12063057.76 | AD23: =X23 -> -58243.99 | AE23: -125746.44 | AH23: =AD23+AE23-AF23+AG23 -> -183990.43 | AI23: -12063057.76 | AJ23: -3416930.31 | AK23: -5577001.6 | AL23: 16968 | AM23: -9886018.47 | AN23: -183990.43 | AO23: -134976.81 | AP23: -81126 | AR23: =AN23+AO23-AP23+AQ23 -> -237841.24 | AS23: -9886018.47 | AT23: -750596.13 | AU23: -6486055.74 | AV23: -428586 | AW23: -4579144.86 | AX23: -237841.24 | AY23: -28008.97 | AZ23: -198209.45 | BB23: =AX23+AY23-AZ23+BA23 -> -67640.76 | BC23: -4579144.86 | BD23: -10407994.03 | BE23: -3399962.73 | BG23: -11587176.16 | BH23: -67640.76 | BI23: -49704.58 | BJ23: -184956.2615 | BL23: =BH23+BI23-BJ23+BK23 -> 67610.92151 | BM23: -11587176.16 | BN23: -4482608.54 | BO23: -1179182.13 | BQ23: =BM23+BN23-BO23+SUM(BP23:BP23) -> -14890602.57 | BR23: 67610.92151 | BS23: -138990.0915 | BT23: 104324.3215 | BV23: =BR23+BS23-BT23+BU23 -> -175703.4915 | BW23: -14890602.57 | BX23: =-4605646.76+173.67 -> -4605473.09 | BY23: -10407994.03 | CA23: =BW23+BX23-BY23+SUM(BZ23:BZ23) -> -9088081.63 | CB23: -175703.4915 | CC23: -85982.75 | CD23: -150131.01 | CF23: =CB23+CC23-CD23+CE23 -> -111555.2315 | CG23: -4482608.54 | CH23: -74881.17699 | CI23: -4605473.09 | CJ23: -36674.05455 | CK23: -95179.77719 | CM23: =CJ23+CK23+CL23 -> -131853.8317 | CN23: =SUM(CI23:CL23) -> -4737326.922 | CO23: -9199636.86 | CP23: 0.001542482525
C24: Variance WMS – Sub-account CBR Class A | D24: 1580 | I24: 0 | N24: 0 | O24: 0 | P24: 0 | S24: 0 | T24: 0 | U24: 0 | X24: 0 | Y24: 0 | AC24: 0 | AD24: 0 | AH24: 0 | AI24: 0 | AM24: 0 | AN24: 0 | AR24: 0 | AS24: 0 | AW24: 0 | AX24: 0 | BB24: 0 | BC24: 0 | BD24: 124743.52 | BG24: =BC24+BD24-BE24+SUM(BF24:BF24) -> 124743.52 | BH24: 0 | BI24: 374.97 | BL24: 374.97 | BM24: 124743.52 | BN24: -124743.54 | BQ24: =BM24+BN24-BO24+SUM(BP24:BP24) -> -0.02000000003 | BR24: 374.97 | BS24: -374.97 | BV24: -5.684341886e-14 | BW24: -0.02000000003 | CA24: =BW24+BX24-BY24+SUM(BZ24:BZ24) -> -0.02000000003 | CB24: -5.684341886e-14 | CF24: -5.684341886e-14 | CG24: -0.02000000003 | CH24: -0.0002200000004 | CI24: 0 | CJ24: 0.0002200000004 | CK24: 0 | CM24: =CJ24+CK24+CL24 -> 0.0002200000004 | CN24: 0.0002200000004 | CO24: 0 | CP24: 0.02000000003
C25: Variance WMS – Sub-account CBR Class B | D25: 1580 | I25: 0 | N25: 0 | O25: 0 | P25: 0 | S25: 0 | T25: 0 | U25: 0 | X25: 0 | Y25: 0 | AC25: 0 | AD25: 0 | AH25: 0 | AI25: 0 | AM25: 0 | AN25: 0 | AR25: 0 | AS25: 0 | AW25: 0 | AX25: 0 | BB25: 0 | BC25: 0 | BD25: 1108630.1 | BG25: 1108630.1 | BH25: 0 | BI25: 3562.99 | BL25: 3562.99 | BM25: 1108630.1 | BN25: -185940.41 | BQ25: =BM25+BN25-BO25+SUM(BP25:BP25) -> 922689.69 | BR25: 3562.99 | BS25: 11337.26424 | BV25: 14900.25424 | BW25: 922689.69 | BX25: =-55141.27-184.99 -> -55326.26 | BY25: 1108630.1 | CA25: =BW25+BX25-BY25+SUM(BZ25:BZ25) -> -241266.67 | CB25: 14900.25424 | CC25: -1607.39 | CD25: 15757.92 | CF25: -2465.055756 | CG25: -185940.41 | CH25: -2903.010266 | CI25: -55326.26 | CJ25: 437.95451 | CK25: -1143.409373 | CM25: =CJ25+CK25+CL25 -> -705.4548633 | CN25: -56031.71486 | CO25: -243731.73 | CP25: -0.004244166747
C26: RSVA - Retail Transmission Network Charge | D26: 1584 | I26: 0 | N26: 0 | O26: =I26 -> 0 | P26: 631982.59 | S26: 631982.59 | T26: 0 | U26: 26118.28 | X26: =T26+U26-V26+W26 -> 26118.28 | Y26: 631982.59 | Z26: 177337.63 | AC26: =Y26+Z26-AA26+SUM(AB26:AB26) -> 809320.22 | AD26: 26118.28 | AE26: 12236.08 | AH26: =AD26+AE26-AF26+AG26 -> 38354.36 | AI26: 809320.22 | AJ26: 3378169.16 | AK26: 658101 | AM26: 3529388.38 | AN26: 38354.36 | AO26: 24797.88 | AP26: 9290 | AR26: =AN26+AO26-AP26+AQ26 -> 53862.24 | AS26: 3529388.38 | AT26: 3491680.45 | AU26: 151219.22 | AW26: 6869849.61 | AX26: 53862.24 | AY26: 73256.38 | AZ26: 31287.01 | BB26: =AX26+AY26-AZ26+BA26 -> 95831.61 | BC26: 6869849.61 | BD26: -1237207.29 | BE26: 3378169.21 | BG26: 2254473.11 | BH26: 95831.61 | BI26: 40112.4 | BJ26: 74457.24 | BL26: =BH26+BI26-BJ26+BK26 -> 61486.77 | BM26: 2254473.11 | BN26: -532829.4 | BO26: 3491680.45 | BQ26: =BM26+BN26-BO26+SUM(BP26:BP26) -> -1770036.74 | BR26: 61486.77 | BS26: -12513.33 | BT26: 63012.66 | BV26: =BR26+BS26-BT26+BU26 -> -14039.22 | BW26: -1770036.74 | BX26: -187534.89 | BY26: -1237207.29 | CA26: -720364.34 | CB26: -14039.22 | CC26: -7639.01 | CD26: -15135.17 | CF26: -6543.06 | CG26: -532829.45 | CH26: -4765.17395 | CI26: -187534.89 | CJ26: -1777.88605 | CK26: -3875.72106 | CM26: =CJ26+CK26+CL26 -> -5653.60711 | CN26: -193188.4971 | CO26: -726907.37 | CP26: 0.03000000038
C27: RSVA - Retail Transmission Connection Charge | D27: 1586 | I27: 0 | N27: 0 | O27: 0 | P27: -170342.67 | S27: -170342.67 | T27: 0 | U27: 699.95 | X27: 699.95 | Y27: -170342.67 | Z27: -76744.959 | AC27: -247087.629 | AD27: 699.95 | AE27: -2601.08 | AH27: -1901.13 | AI27: -247087.629 | AJ27: 1314693.93 | AK27: -169642.72 | AM27: 1237249.021 | AN27: -1901.13 | AO27: 5832.14 | AP27: -2504 | AR27: 6435.01 | AS27: 1237249.021 | AT27: 2601535.59 | AU27: -77444.91 | AW27: 3916229.521 | AX27: 6435.01 | AY27: 35834.12 | AZ27: -536.01 | BB27: 42805.14 | BC27: 3916229.521 | BD27: -230302.05 | BE27: 1314693.93 | BG27: 2371233.541 | BH27: 42805.14 | BI27: 32228.91 | BJ27: 25158.58 | BL27: 49875.47 | BM27: 2371233.541 | BN27: 941983.47 | BO27: 2601535.59 | BQ27: 711681.421 | BR27: 49875.47 | BS27: 4911.14 | BT27: 48669.87 | BV27: 6116.74 | BW27: 711681.421 | BX27: 433359.47 | BY27: -230302.05 | CA27: 1375342.941 | CB27: 6116.74 | CC27: 12740.23 | CD27: -1327.72 | CF27: 20184.69 | CG27: 941983.471 | CH27: 17806.27818 | CI27: 433359.47 | CJ27: 2378.411819 | CK27: 8956.095713 | CM27: 11334.50753 | CN27: =SUM(CI27:CL27) -> 444693.9775 | CO27: 1395527.63 | CP27: -0.0009999815375
C28: RSVA - Power | D28: 1588 | I28: 0 | N28: 0 | O28: 0 | P28: -1031401.67 | S28: -1031401.67 | T28: 0 | U28: -19574.56 | X28: -19574.56 | Y28: -1031401.67 | Z28: -541508.42 | AC28: -1572910.09 | AD28: -19574.56 | AE28: -3471.59 | AH28: -23046.15 | AI28: -1572910.09 | AJ28: 924467.16 | AK28: -1050976.23 | AL28: -4668526.987 | AM28: -4265993.687 | AN28: -23046.15 | AO28: 11467.69 | AP28: -15162 | AQ28: -60232.10175 | AR28: -56648.56175 | AS28: -4265993.687 | AT28: -552173.06 | AU28: -521933.17 | AV28: -2337699.494 | AW28: -6633933.071 | AX28: -56648.56175 | AY28: -82951.48 | AZ28: -15556.57 | BB28: -124043.4717 | BC28: -6633933.071 | BD28: -859776.22 | BE28: -3744060.523 | BG28: -3749648.768 | BH28: -124043.4717 | BI28: -29325.46 | BJ28: -103602.6717 | BL28: -49766.26 | BM28: -3749648.768 | BN28: -148172.51 | BO28: -2889872.554 | BP28: 819534 | BQ28: -188414.7236 | BR28: -49766.26 | BS28: 5680.24 | BT28: -54902.53 | BV28: 10816.51 | BW28: -188414.7236 | BX28: =-3817332.75+8484 -> -3808848.75 | BY28: -859776.22 | BZ28: =-BP28+587573 -> -231961 | CA28: -3369448.254 | CB28: 10816.51 | CC28: -2168.95 | CD28: -4321.27 | CF28: 12968.83 | CG28: 671361.4964 | CH28: 22522.75646 | CI28: -4040809.75 | CJ28: -9553.92646 | CK28: -83510.06817 | CM28: -93063.99463 | CN28: -4133873.745 | CO28: -3944052.49 | CP28: -587573.0664
C29: RSVA - Global Adjustment | D29: 1589 | I29: 0 | N29: 0 | O29: 0 | P29: 1058062.99 | S29: 1058062.99 | T29: 0 | U29: 69597.94 | X29: 69597.94 | Y29: 1058062.99 | Z29: -3235246.12 | AC29: -2177183.13 | AD29: 69597.94 | AE29: 495.22 | AH29: 70093.16 | AI29: -2177183.13 | AJ29: -1669046.04 | AK29: 1127660.93 | AL29: 4668526.987 | AM29: -305363.1131 | AN29: 70093.16 | AO29: -16958.78 | AP29: 15553 | AQ29: 60232.10175 | AR29: 97813.48175 | AS29: -305363.1131 | AT29: 1473743.97 | AU29: -3304844.06 | AV29: 5344769.494 | AW29: 9817994.411 | AX29: 97813.48175 | AY29: 92778.54 | AZ29: 5958.95 | BB29: 184633.0717 | BC29: 9817994.411 | BD29: 2612620.86 | BE29: 2999480.953 | BG29: 9431134.318 | BH29: 184633.0717 | BI29: 97517.38 | BJ29: 87365.69175 | BL29: 194784.76 | BM29: 9431134.318 | BN29: -3004934.77 | BO29: 6818513.464 | BP29: -1808419 | BQ29: -2200732.916 | BR29: 194784.76 | BS29: 28693.39 | BT29: 178578.15 | BV29: 44900 | BW29: -2200732.916 | BX29: -1322742 | BY29: 2612620.86 | BZ29: =-BP29-1842135+1005879 -> 972163 | CA29: -5163932.776 | CB29: 44900 | CC29: -17300.04 | CD29: =16206.61+28738.83 -> 44945.44 | CF29: -17345.48 | CG29: -4813353.776 | CH29: -52992.33154 | CI29: -350579 | CJ29: 35646.85154 | CK29: -7245.299333 | CM29: 28401.55221 | CN29: -322177.4478 | CO29: -4345022.27 | CP29: 836255.9864
C30: Disposition and Recovery/Refund of Regulatory Balances (2009)4 | D30: 1595 | I30: 0 | N30: 0 | O30: 0 | P30: -2913895.85 | S30: -2913895.85 | T30: 0 | U30: -2492081.56 | X30: -2492081.56 | Y30: -2913895.85 | Z30: 2840650.07 | AC30: -73245.78 | AD30: -2492081.56 | AE30: -9602.92 | AH30: -2501684.48 | AI30: -73245.78 | AM30: -73245.78 | AN30: -2501684.48 | AO30: -1076.76 | AR30: -2502761.24 | AS30: -73245.78 | AW30: -73245.78 | AX30: -2502761.24 | AY30: -1076.76 | BB30: -2503838 | BC30: -73245.78 | BE30: -73245.78 | BG30: 4.656612873e-10 | BH30: -2503838 | BJ30: -2503838 | BL30: 4.656612873e-10 | BM30: 4.656612873e-10 | BQ30: 4.656612873e-10 | BR30: 4.656612873e-10 | BV30: 4.656612873e-10 | BW30: 4.656612873e-10 | CA30: 4.656612873e-10 | CB30: 4.656612873e-10 | CF30: 4.656612873e-10 | CG30: 4.656612873e-10 | CH30: 4.707835615e-10 | CI30: 0 | CJ30: -5.12227416e-12 | CK30: 0 | CM30: -5.12227416e-12 | CN30: =IF(CD30=0,IF(SUM(CG30:CH30)=0,SUM(CI30:CL30),0),SUM(CI30:CL30)) -> 0 | CP30: -9.313225746e-10
C31: Disposition and Recovery/Refund of Regulatory Balances (2010)4 | D31: 1595 | I31: 0 | N31: 0 | O31: 0 | P31: 1927441.57 | S31: 1927441.57 | T31: 0 | U31: -21555.89 | X31: -21555.89 | Y31: 1927441.57 | Z31: -2230636.57 | AC31: -303195 | AD31: -21555.89 | AE31: 13368.49 | AH31: -8187.4 | AI31: -303195 | AM31: -303195 | AN31: -8187.4 | AO31: -4456.92 | AR31: -12644.32 | AS31: -303195 | AW31: -303195 | AX31: -12644.32 | AY31: -4456.92 | BB31: -17101.24 | BC31: -303195 | BE31: -303195 | BG31: 0 | BH31: -17101.24 | BJ31: -17101.24 | BL31: 3.637978807e-12 | BM31: 0 | BQ31: 0 | BR31: 3.637978807e-12 | BV31: 3.637978807e-12 | BW31: 0 | CA31: 0 | CB31: 3.637978807e-12 | CF31: 3.637978807e-12 | CG31: 0 | CH31: 3.637978807e-12 | CI31: 0 | CJ31: 0 | CK31: 0 | CM31: 0 | CN31: 0 | CP31: -3.637978807e-12
C32: Disposition and Recovery/Refund of Regulatory Balances (2011)4 | D32: 1595 | I32: 0 | N32: 0 | O32: 0 | P32: -8695917.68 | S32: =O32+P32-Q32+SUM(R32:R32) -> -8695917.68 | T32: 0 | U32: -154326.92 | X32: -154326.92 | Y32: -8695917.68 | Z32: 9300673.24 | AC32: 604755.56 | AD32: -154326.92 | AE32: -65930.35 | AH32: -220257.27 | AI32: 604755.56 | AM32: 604755.56 | AN32: -220257.27 | AO32: 8889.96 | AR32: -211367.31 | AS32: 604755.56 | AW32: 604755.56 | AX32: -211367.31 | AY32: 8889.96 | BB32: -202477.35 | BC32: 604755.56 | BE32: 604755.56 | BG32: 0 | BH32: -202477.35 | BJ32: -202477.35 | BL32: 0 | BM32: 0 | BQ32: 0 | BR32: 0 | BV32: 0 | BW32: 0 | CA32: 0 | CB32: 0 | CF32: 0 | CG32: 0 | CH32: 0 | CI32: 0 | CJ32: 0 | CK32: 0 | CM32: 0 | CN32: 0 | CP32: 0
C33: Disposition and Recovery/Refund of Regulatory Balances (2012)4 | D33: 1595 | I33: 0 | N33: 0 | O33: 0 | P33: 0 | S33: 0 | T33: 0 | U33: 0 | X33: 0 | Y33: 0 | AA33: -2039038 | AB33: -493721.79 | AC33: 1545316.21 | AD33: 0 | AF33: -1284828 | AG33: 2206.5 | AH33: 1287034.5 | AI33: 1545316.21 | AJ33: -2940696.39 | AM33: -1395380.18 | AN33: 1287034.5 | AO33: 1788.85 | AQ33: 1306.01415 | AR33: 1290129.364 | AS33: -1395380.18 | AW33: -1395380.18 | AX33: 1290129.364 | AY33: -20512.08 | BB33: 1269617.284 | BC33: -1395380.18 | BE33: -1395380.18 | BG33: 4.656612873e-10 | BH33: 1269617.284 | BJ33: 1269617.28 | BL33: 0.004149999935 | BM33: 4.656612873e-10 | BQ33: 4.656612873e-10 | BR33: 0.004149999935 | BV33: 0.004149999935 | BW33: 4.656612873e-10 | CA33: 4.656612873e-10 | CB33: 0.004149999935 | CF33: 0.004149999935 | CG33: 4.656612873e-10 | CH33: 0.00414999994 | CI33: 0 | CJ33: -5.122274133e-12 | CK33: 0 | CM33: -5.122274133e-12 | CN33: 0 | CP33: -0.004150000401
C34: Disposition and Recovery/Refund of Regulatory Balances (2013)4 | D34: 1595 | I34: 0 | N34: 0 | O34: 0 | P34: 0 | S34: 0 | T34: 0 | U34: 0 | X34: 0 | Y34: 0 | AC34: 0 | AD34: 0 | AH34: 0 | AI34: 0 | AJ34: 5370488.58 | AK34: 4894519.46 | AM34: 475969.12 | AN34: 0 | AO34: -30180.30351 | AP34: 72247 | AR34: -102427.3035 | AS34: 475969.12 | AW34: 475969.12 | AX34: -102427.3035 | AY34: 6996.722172 | BB34: -95430.58133 | BC34: 475969.12 | BE34: 475969.12 | BG34: -9.313225746e-10 | BH34: -95430.58133 | BJ34: -95430.58 | BL34: -0.001334500004 | BM34: -9.313225746e-10 | BQ34: -9.313225746e-10 | BR34: -0.001334500004 | BV34: -0.001334500004 | BW34: -9.313225746e-10 | CA34: -9.313225746e-10 | CB34: -0.001334500004 | CF34: -0.001334500004 | CG34: -9.313225746e-10 | CH34: -0.001334500015 | CI34: 0 | CJ34: 1.024454827e-11 | CK34: 0 | CM34: 1.024454827e-11 | CN34: 0 | CP34: 0.001334500936
C35: Disposition and Recovery/Refund of Regulatory Balances (2014)4 | D35: 1595 | I35: 0 | N35: 0 | O35: 0 | P35: 0 | S35: 0 | T35: 0 | U35: 0 | X35: 0 | Y35: 0 | AC35: 0 | AD35: 0 | AH35: 0 | AI35: 0 | AM35: 0 | AN35: 0 | AR35: 0 | AS35: 0 | AT35: 10296123.94 | AU35: 10223947.43 | AW35: 72176.50984 | AX35: 0 | AY35: 174450.57 | AZ35: 175163.77 | BB35: -713.2 | BC35: 72176.50984 | BG35: 72176.50984 | BH35: -713.2 | BI35: 860.7018008 | BL35: 147.5018008 | BM35: 72176.50984 | BO35: 72176.51 | BQ35: -0.00015895463 | BR35: 147.5018008 | BT35: 147.5 | BV35: 0.001800833321 | BW35: -0.00015895463 | CA35: -0.00015895463 | CB35: 0.001800833321 | CF35: 0.001800833321 | CG35: -0.00015895463 | CH35: 0.001799084821 | CI35: 0 | CJ35: 1.74850093e-06 | CK35: 0 | CM35: =CJ35+CK35+CL35 -> 1.74850093e-06 | CN35: 0 | CP35: -0.001641878691
C36: Disposition and Recovery/Refund of Regulatory Balances (2015)4 | D36: 1595 | I36: 0 | N36: 0 | O36: 0 | P36: 0 | S36: 0 | T36: 0 | U36: 0 | X36: 0 | Y36: 0 | AC36: 0 | AD36: 0 | AH36: 0 | AI36: 0 | AM36: 0 | AN36: 0 | AR36: 0 | AS36: 0 | AW36: 0 | AX36: 0 | BB36: 0 | BC36: 0 | BD36: -256826.8305 | BE36: -456725.3173 | BG36: 199898.4868 | BH36: 0 | BI36: 1587898.734 | BJ36: 1610163.362 | BK36: 4709.509837 | BL36: -17555.11871 | BM36: 199898.4868 | BQ36: 199898.4868 | BR36: -17555.11871 | BS36: 2198.883355 | BV36: -15356.23536 | BW36: 199898.4868 | BY36: =127372+72526 -> 199898 | CA36: 0.4867890968 | CB36: -15356.23536 | CD36: =-47712+4715.9+27640 -> -15356.1 | CF36: -0.1353582143 | CG36: 0 | CH36: 0.003354679986 | CI36: 0.4867890968 | CJ36: -0.1387128943 | CK36: 0.010060308 | CM36: -0.1286525863 | CN36: =IF(CD36=0,IF(SUM(CG36:CH36)=0,SUM(CI36:CL36),0),SUM(CI36:CL36)) -> 0.3581365105 | CP36: -0.3514308825
C37: Disposition and Recovery/Refund of Regulatory Balances (2016)4 | D37: 1595 | I37: 0 | N37: 0 | O37: 0 | P37: 0 | S37: 0 | T37: 0 | U37: 0 | X37: 0 | Y37: 0 | AC37: 0 | AD37: 0 | AH37: 0 | AI37: 0 | AM37: 0 | AN37: 0 | AR37: 0 | AS37: 0 | AW37: 0 | AX37: 0 | BB37: 0 | BC37: 0 | BG37: 0 | BH37: 0 | BL37: 0 | BM37: 0 | BN37: -8988871.513 | BO37: -9183779.801 | BQ37: 194908.2876 | BR37: 0 | BS37: 47944.96192 | BT37: -343677.9537 | BV37: 391622.9157 | BW37: 194908.2876 | CA37: 194908.2876 | CB37: 391622.9157 | CC37: =2338.9-65.43 -> 2273.47 | CF37: 393896.3857 | CG37: 194908.2876 | CH37: 393766.9068 | CI37: 0 | CJ37: 129.4788367 | CK37: 0 | CM37: 129.4788367 | CN37: =IF(CD37=0,IF(SUM(CG37:CH37)=0,SUM(CI37:CL37),0),SUM(CI37:CL37)) -> 0 | CO37: 588804.67 | CP37: -0.003229248221
C38: Disposition and Recovery/Refund of Regulatory Balances (2017)4 | D38: 1595 | AS38: 0 | BW38: 0 | BX38: =7897024.61-458.44 -> 7896566.17 | BY38: 8365783.44 | CA38: -469217.27 | CB38: 0 | CC38: -46776.26 | CD38: 118765 | CF38: -165541.26 | CG38: 0 | CH38: 0 | CI38: -469217.27 | CJ38: -165541.26 | CK38: -9697.156913 | CM38: 0 | CN38: 0 | CO38: -634758.53 | CP38: =CO38-SUM(CA38,CF38) -> 0
C40: =C29 -> RSVA - Global Adjustment | D40: 1589 | E40: =E29 -> 0 | F40: 0 | G40: 0 | H40: 0 | I40: 0 | J40: 0 | K40: 0 | L40: 0 | M40: 0 | N40: 0 | O40: 0 | P40: 1058062.99 | Q40: 0 | R40: 0 | S40: 1058062.99 | T40: 0 | U40: 69597.94 | V40: 0 | W40: 0 | X40: 69597.94 | Y40: 1058062.99 | Z40: -3235246.12 | AA40: 0 | AB40: 0 | AC40: -2177183.13 | AD40: 69597.94 | AE40: 495.22 | AF40: 0 | AG40: 0 | AH40: 70093.16 | AI40: -2177183.13 | AJ40: -1669046.04 | AK40: 1127660.93 | AL40: 4668526.987 | AM40: -305363.1131 | AN40: 70093.16 | AO40: -16958.78 | AP40: 15553 | AQ40: 60232.10175 | AR40: 97813.48175 | AS40: -305363.1131 | AT40: 1473743.97 | AU40: -3304844.06 | AV40: 5344769.494 | AW40: 9817994.411 | AX40: 97813.48175 | AY40: 92778.54 | AZ40: 5958.95 | BA40: 0 | BB40: 184633.0717 | BC40: 9817994.411 | BD40: 2612620.86 | BE40: 2999480.953 | BF40: 0 | BG40: 9431134.318 | BH40: 184633.0717 | BI40: 97517.38 | BJ40: 87365.69175 | BK40: 0 | BL40: 194784.76 | BM40: 9431134.318 | BN40: -3004934.77 | BO40: 6818513.464 | BP40: -1808419 | BQ40: =BQ29 -> -2200732.916 | BR40: 194784.76 | BS40: 28693.39 | BT40: 178578.15 | BU40: 0 | BV40: 44900 | BW40: -2200732.916 | CA40: =CA29 -> -5163932.776 | CB40: =CB29 -> 44900 | CF40: =CF29 -> -17345.48 | CG40: -4813353.776 | CH40: -52992.33154 | CI40: -350579 | CJ40: 35646.85154 | CK40: =CK29 -> -7245.299333 | CL40: =CL29 -> 0 | CM40: =CM29 -> 28401.55221 | CN40: =CN29 -> -322177.4478 | CO40: =CO29 -> -4345022.27 | CP40: =CO40-SUM(CA40,CF40) -> 836255.9864
C41: Total Group 1 Balance excluding Account 1589 - Global Adjustment | E41: =SUM(E21:E37)-E29 -> 0 | F41: =SUM(F21:F37)-F29 -> 0 | G41: 0 | H41: 0 | I41: 0 | J41: 0 | K41: 0 | L41: 0 | M41: 0 | N41: 0 | O41: 0 | P41: -15655123.52 | Q41: 0 | R41: 0 | S41: -15655123.52 | T41: 0 | U41: -2717393.33 | V41: 0 | W41: 0 | X41: -2717393.33 | Y41: -15655123.52 | Z41: 2942153.771 | AA41: -2039038 | AB41: -493721.79 | AC41: -11167653.54 | AD41: -2717393.33 | AE41: -179947.01 | AF41: -1284828 | AG41: 2206.5 | AH41: -1610305.84 | AI41: -11167653.54 | AJ41: 4900338.85 | AK41: -1127660.93 | AL41: -4651558.987 | AM41: -9791212.746 | AN41: -1610305.84 | AO41: -115737.6235 | AP41: -15553 | AQ41: -58926.0876 | AR41: -1769416.551 | AS41: -9791212.746 | AT41: 15355499.31 | AU41: 3304844.06 | AV41: -2766285.494 | AW41: -506842.9906 | AX41: -1769416.551 | AY41: 168326.3422 | AZ41: -5958.95 | BA41: 0 | BB41: -1595131.259 | BC41: -506842.9906 | BD41: -11310386.1 | BE41: -3328834.651 | BF41: 0 | BG41: -8488394.44 | BH41: -1595131.259 | BI41: 1591086.866 | BJ41: -121861.8354 | BK41: 4709.509837 | BL41: 122526.9519 | BM41: -8488394.44 | BN41: =SUM(BN21:BN37)-BN29 -> -12992103.52 | BO41: -6818513.415 | BP41: 819534 | BQ41: -13842450.55 | BR41: =SUM(BR21:BR37)-BR29 -> 122526.9519 | BS41: -72019.26446 | BT41: -177507.6553 | BU41: 0 | BV41: 228015.3428 | BW41: =SUM(BW21:BW38)-BW29 -> -13842450.55 | CA41: =SUM(CA21:CA38)-CA29 -> -11230616.3 | CB41: =SUM(CB21:CB38)-CB29 -> 228015.3428 | CF41: =SUM(CF21:CF38)-CF29 -> 153651.6328 | CG41: -2864046.245 | CH41: 360221.2821 | CI41: =SUM(CI21:CI38)-CI29 -> -8366570.053 | CJ41: =SUM(CJ21:CJ38)-CJ29 -> -206569.6493 | CK41: =SUM(CK21:CK38)-CK29 -> -172909.1144 | CL41: 0 | CM41: =SUM(CM21:CM38)-CM29 -> -204240.3469 | CN41: =SUM(CN21:CN38)-CN29 -> -8101722.609 | CO41: =SUM(CO21:CO38)-CO29 -> -11664538.05 | CP41: -587573.3844
C42: Total Group 1 Balance | E42: =SUM(E40,E41) -> 0 | F42: =SUM(F40,F41) -> 0 | G42: 0 | H42: 0 | I42: 0 | J42: 0 | K42: 0 | L42: 0 | M42: 0 | N42: 0 | O42: 0 | P42: =SUM(P40,P41) -> -14597060.53 | Q42: =SUM(Q40,Q41) -> 0 | R42: 0 | S42: -14597060.53 | T42: 0 | U42: -2647795.39 | V42: 0 | W42: 0 | X42: -2647795.39 | Y42: -14597060.53 | Z42: -293092.349 | AA42: -2039038 | AB42: -493721.79 | AC42: -13344836.67 | AD42: -2647795.39 | AE42: -179451.79 | AF42: -1284828 | AG42: 2206.5 | AH42: -1540212.68 | AI42: -13344836.67 | AJ42: 3231292.81 | AK42: 0 | AL42: 16968 | AM42: -10096575.86 | AN42: -1540212.68 | AO42: -132696.4035 | AP42: 0 | AQ42: 1306.01415 | AR42: -1671603.069 | AS42: -10096575.86 | AT42: 16829243.28 | AU42: 0 | AV42: 2578484 | AW42: 9311151.421 | AX42: -1671603.069 | AY42: 261104.8822 | AZ42: 0 | BA42: 0 | BB42: -1410498.187 | BC42: 9311151.421 | BD42: -8697765.241 | BE42: -329353.6973 | BF42: 0 | BG42: 942739.8776 | BH42: -1410498.187 | BI42: 1688604.246 | BJ42: -34496.1437 | BK42: 4709.509837 | BL42: 317311.7119 | BM42: 942739.8776 | BN42: -15997038.29 | BO42: 0.04915894195 | BP42: -988885 | BQ42: -16043183.46 | BR42: 317311.7119 | BS42: -43325.87446 | BT42: 1070.49466 | BU42: 0 | BV42: 272915.3428 | BW42: =SUM(BW40,BW41) -> -16043183.46 | CA42: =SUM(CA40,CA41) -> -16394549.07 | CB42: =SUM(CB40,CB41) -> 272915.3428 | CF42: =SUM(CF40,CF41) -> 136306.1528 | CG42: -7677400.022 | CH42: 307228.9506 | CI42: -8717149.053 | CJ42: -170922.7978 | CK42: =SUM(CK40,CK41) -> -180154.4138 | CL42: 0 | CM42: -175838.7946 | CN42: =SUM(CN40,CN41) -> -8423900.057 | CO42: =SUM(CO40,CO41) -> -16009560.32 | CP42: 248682.602
A44: 29 | C44: LRAM Variance Account (only input amounts if applying for disposition of this account) | D44: 1568 | S44: =O44+P44-Q44+SUM(R44:R44) -> 0 | X44: =T44+U44-V44+W44 -> 0 | Y44: =S44 -> 0 | Z44: -237216 | AC44: =Y44+Z44-AA44+SUM(AB44:AB44) -> -237216 | AD44: =X44 -> 0 | AE44: -278 | AH44: =AD44+AE44-AF44+AG44 -> -278 | AI44: =AC44 -> -237216 | AM44: =AI44+AJ44-AK44+SUM(AL44:AL44) -> -237216 | AN44: =AH44 -> -278 | AO44: -3487 | AR44: =AN44+AO44-AP44+AQ44 -> -3765 | AS44: =AM44 -> -237216 | AT44: -59871 | AW44: =AS44+AT44-AU44+SUM(AV44:AV44) -> -297087 | AX44: =AR44 -> -3765 | AY44: -3487 | BB44: =AX44+AY44-AZ44+BA44 -> -7252 | BC44: =AW44 -> -297087 | BD44: 85881 | BE44: -237216 | BG44: =BC44+BD44-BE44+SUM(BF44:BF44) -> 26010 | BH44: =BB44 -> -7252 | BI44: -1005 | BJ44: -7252 | BL44: =BH44+BI44-BJ44+BK44 -> -1005 | BM44: =BG44 -> 26010 | BN44: 303456 | BQ44: =BM44+BN44-BO44+SUM(BP44:BP44) -> 329466 | BR44: =BL44 -> -1005 | BS44: 564 | BV44: =BR44+BS44-BT44+BU44 -> -441 | BW44: =BQ44 -> 329466 | BX44: =2283050.55+1.5 -> 2283052.05 | CA44: =BW44+BX44-BY44+SUM(BZ44:BZ44) -> 2612518.05 | CB44: =BV44 -> -441 | CC44: 67737.27 | CF44: =CB44+CC44-CD44+CE44 -> 67296.27 | CI44: =CA44-CG44 -> 2612518.05 | CJ44: =CF44-CH44 -> 67296.27 | CK44: =CI44*((1.5%*25%)+(1.89%*50%)+2.17%/4+2.45%/12) -> 53992.0397 | CM44: =CJ44+CK44+CL44 -> 121288.3097 | CN44: =SUM(CI44:CL44) -> 2733806.36 | CO44: 2679814.32 | CP44: =CO44-SUM(CA44,CF44) -> 0
C46: Total including Account 1568 | E46: =SUM(E42,E44) -> 0 | F46: =SUM(F42,F44) -> 0 | G46: 0 | H46: 0 | I46: 0 | J46: 0 | K46: 0 | L46: 0 | M46: 0 | N46: 0 | O46: 0 | P46: -14597060.53 | Q46: 0 | R46: 0 | S46: -14597060.53 | T46: 0 | U46: -2647795.39 | V46: 0 | W46: 0 | X46: -2647795.39 | Y46: -14597060.53 | Z46: -530308.349 | AA46: -2039038 | AB46: -493721.79 | AC46: -13582052.67 | AD46: -2647795.39 | AE46: -179729.79 | AF46: -1284828 | AG46: 2206.5 | AH46: -1540490.68 | AI46: -13582052.67 | AJ46: 3231292.81 | AK46: 0 | AL46: 16968 | AM46: -10333791.86 | AN46: -1540490.68 | AO46: -136183.4035 | AP46: 0 | AQ46: 1306.01415 | AR46: -1675368.069 | AS46: -10333791.86 | AT46: 16769372.28 | AU46: 0 | AV46: 2578484 | AW46: 9014064.421 | AX46: -1675368.069 | AY46: 257617.8822 | AZ46: 0 | BA46: 0 | BB46: -1417750.187 | BC46: 9014064.421 | BD46: -8611884.241 | BE46: -566569.6973 | BF46: 0 | BG46: 968749.8776 | BH46: -1417750.187 | BI46: 1687599.246 | BJ46: -41748.1437 | BK46: 4709.509837 | BL46: 316306.7119 | BM46: 968749.8776 | BN46: -15693582.29 | BO46: 0.04915894195 | BP46: -988885 | BQ46: -15713717.46 | BR46: 316306.7119 | BS46: -42761.87446 | BT46: 1070.49466 | BU46: 0 | BV46: 272474.3428 | BW46: =SUM(BW42,BW44) -> -15713717.46 | CA46: =SUM(CA42,CA44) -> -13782031.02 | CB46: 272474.3428 | CF46: =SUM(CF42,CF44) -> 203602.4228 | CG46: -7677400.022 | CH46: 307228.9506 | CI46: -6104631.003 | CJ46: -103626.5278 | CK46: -126162.3741 | CL46: =SUM(CL42,CL44) -> 0 | CM46: =SUM(CM42,CM44) -> -54550.48495 | CN46: =SUM(CN42,CN44) -> -5690093.697 | CO46: =SUM(CO42,CO44) -> -13329746 | CP46: =CO46-SUM(CA46,CF46) -> 248682.602
C49: For all OEB-Approved dispositions, please ensure that the disposition amount has the same sign (e.g: debit balances are to have a positive figure and credit balance are to have a negative figure) as per the related OEB decision.
CA50: =+CA42-BZ28-BZ29 -> -17134751.07 | CB50: =+CF42 -> 136306.1528 | CC50: =+CA50+CB50 -> -16998444.92
B52: 1 | C52: Please provide explanations for the nature of the adjustments. If the adjustment relates to previously OEB-Approved disposed balances, please provide amounts for adjustments and include supporting documentations.
B53: 2 | C53: For RSVA accounts only, report the net variance to the account during the year. For all other accounts, record the transactions during the year.
B54: 3 | C54: If the LDC’s rate year begins on January 1, 2017, the projected interest is recorded from January 1, 2016 to December 31, 2016 on the December 31, 2015 balances adjusted for the disposed balances approved by the OEB in the 2016 rate decision. If the LDC’s rate year begins on May 1, 2017, the projected interest is recorded from January 1, 2016 to April 30, 2017 on the December 31, 2015 balances adjusted for the disposed interest balances approved by the OEB in the 2016 rate decision.
B55: 4 | C55: Include Account 1595 as part of Group 1 accounts (lines 30-36) for review and disposition if the recovery (or refund) period has been completed. If the recovery (or refund) period has not been completed, do not include the respective balance in Account 1595 for disposition at this time.
C57: Account 1595 - adjustments (2016):
C58: These were required due to a comprehensive review of all the dispositions during 2015 and 2016. It was determined that there were a number of reporting errors. Past recovery billings were applied to the wrong year or there was transposition errors whereby billings were applied to interest rather than principal or vice versa.

Sheet 4. Billing Det. for Def-Var
A1: Back to Index | K1: Yes | U1: =IF(D18="YES", "YES", "NO") -> NO
B2: =+'1. Information Sheet'!B2 -> INCENTIVE REGULATION MODEL FOR 2019 FILERS
B13: Information from the most recent RRR (2017 for 2019 IRM)
L14: Approved Recoveries (class allocation %)
D15: Total Metered kWh | E15: Total Metered kW | F15: Metered kWh for Non-RPP Customers | G15: Metered kW for Non-RPP Customers | H15: Metered kWh for Wholesale Market Participants (WMP) | I15: Metered kW for Wholesale Market Participants (WMP) | J15: Total Metered kWh less WMP consumption (if applicable) | K15: Total Metered kW less WMP consumption (if applicable) | L15: 1595 Recovery Proportion (2009) 1 | M15: 1595 Recovery Proportion (2010) 1 | N15: 1595 Recovery Proportion (2011) 1 | O15: 1595 Recovery Proportion (2012) 1 | P15: 1595 Recovery Proportion (2013) 1 | Q15: 1595 Recovery Proportion (2014) 1 | R15: 1595 Recovery Proportion (2015) 1 | S15: 1595 Recovery Proportion (2016) 1 | T15: 1595 Recovery Proportion (2017) 1 | U15: 1568 LRAM Variance Account Class Allocation ($ amounts) | V15: Number of Customers for Residential and GS<50 classes3
B16: Rate Class | C16: Unit
B17: RESIDENTIAL | C17: kWh | D17: 1537580329 | E17: 0 | F17: 70075468 | G17: 0 | J17: =D17-H17 -> 1537580329 | K17: =E17-I17 -> 0 | R17: =+$D17/$D$29 -> 0.2978284538 | S17: =+$D17/$D$29 -> 0.2978284538 | T17: 0 | U17: 422844.954 | V17: 225004
B18: GENERAL SERVICE LESS THAN 50 KW | C18: kWh | D18: 558828431 | E18: 0 | F18: 103616724 | G18: 0 | J18: =D18-H18 -> 558828431 | K18: =E18-I18 -> 0 | R18: =+$D18/$D$29 -> 0.108244756 | S18: =+$D18/$D$29 -> 0.108244756 | T18: 0 | U18: 309436.6446 | V18: 18847
B19: GENERAL SERVICE 50 TO 4,999 KW | C19: kW | D19: 1751908545 | E19: 4824433.383 | F19: 1588736386 | G19: 4041629.493 | J19: =D19-H19 -> 1751908545 | K19: =E19-I19 -> 4824433.383 | R19: =+$D19/$D$29 -> 0.33934371 | S19: 0.33934371 | T19: 0 | U19: 29282.31561
B20: LARGE USE (1) | C20: kW | D20: 220526376.8 | E20: 456125.738 | F20: 220526376.8 | G20: 456125.738 | H20: 34953648.31 | I20: 117811.2058 | J20: 185572728.5 | K20: 338314.5322 | R20: 0.04271583643 | S20: 0.04271583643 | T20: 0 | U20: 8567.39913
B21: LARGE USE (2) | C21: kW | D21: 1050812632 | E21: 1982813.538 | F21: 1050812632 | G21: 1982813.538 | H21: 743436642.7 | I21: 1192576.56 | J21: 307375989.7 | K21: 790236.978 | R21: 0.203541822 | S21: 0.203541822 | T21: 0 | U21: 11872.30622
B22: UNMETERED SCATTERED LOAD | C22: kWh | D22: 11347508.42 | E22: 0 | F22: 427147 | G22: 0 | J22: 11347508.42 | K22: 0 | R22: 0.002198006064 | S22: 0.002198006064 | T22: 0
B23: SENTINEL LIGHTING | C23: kW | D23: 439954.0228 | E23: 946.9101177 | F23: 5557 | G23: 16.17 | J23: =D23-H23 -> 439954.0228 | K23: 946.9101177 | R23: 8.521884932e-05 | S23: 8.521884932e-05 | T23: 0
B24: STREET LIGHTING | C24: kW | D24: 31193672.3 | E24: 87344.171 | F24: 30966099.31 | G24: 86709.011 | J24: =D24-H24 -> 31193672.3 | K24: 87344.171 | R24: 0.006042196961 | S24: 0.006042196961 | T24: 0 | U24: 127901.8048
J25: =D25-H25 -> 0 | K25: 0 | R25: 0 | S25: 0 | T25: 0
J26: 0 | K26: 0 | R26: 0 | S26: 0 | T26: 0
J27: 0 | K27: 0 | R27: 0 | S27: 0 | T27: 0
J28: 0 | K28: 0 | R28: 0 | S28: 0 | T28: 0
C29: Total | D29: =SUM(D17:D28) -> 5162637449 | E29: =SUM(E17:E28) -> 7351663.74 | F29: 3065166391 | G29: 6567293.95 | H29: 778390291 | I29: 1310387.766 | J29: 4384247158 | K29: 6041275.974 | L29: 0 | M29: 0 | N29: 0 | O29: 0 | P29: 0 | Q29: 0 | R29: 1 | S29: =SUM(S17:S28) -> 1 | T29: 0 | U29: 909905.4244 | V29: 243851
B32: Threshold Test | R32: 1568 Account Balance from Continuity Schedule | V32: ='3. Continuity Schedule'!CN44 -> 2733806.36
B33: Total Claim per Continuity (including Account 1568) | D33: ='3. Continuity Schedule'!CN46 -> -5690093.697 | R33: =IF(V32=U29,"Total Balance of Account 1568 in Column R matches the amount entered on the Continuity Schedule","Total Balance of Account 1568 in Column T DOES NOT MATCH the amount entered on the Continuity Schedule") -> Total Balance of Account 1568 in Column T DOES NOT MATCH the amount entered on the Continuity Schedule
B34: Total Claim for Threshold Test (All Group 1 Accounts) | D34: =+'3. Continuity Schedule'!CN42 -> -8423900.057
B35: Threshold Test (Total claim per kWh) 2 | D35: =IFERROR(D34/D29,"") -> -0.001631704752
B36: Exceeds Threshold? | D36: =IF(D35="","",IF(OR(D35>0.001,D35<-0.001),"Yes","No")) -> Yes
B37: ELECT TO DISPOSE of the Group 1 Account Balances? | D37: Yes
B40: As per Section 3.2.5 of the 2017 Filing Requirements for Electricity Distribution Rate Applications, an applicant may elect to dispose of the Group 1 account balances below the threshold.
B41: 1 Residual Account balance to be allocated to rate classes in proportion to the recovery share as established when rate riders were implemented.
B42: 2 The Threshold Test does not include the amount in 1568.
B43: 3 The proportion of customers for the Residential and GS<50 Classes will be used to allocate Account 1551.

Sheet 5. Allocating Def-Var Balances
A1: Back to Index
B2: =+'1. Information Sheet'!B2 -> INCENTIVE REGULATION MODEL FOR 2019 FILERS
B11: No input required. This workshseet allocates the deferral/variance account balances (Group 1 and 1568) to the appropriate classes as per EDDVAR dated July 31, 2009
B13: Allocation of Group 1 Accounts (including Account 1568)
C14: % of Total kWh | D14: % of Total non-RPP kWh | E14: % of Customer Numbers ** | F14: % of Total kWh adjusted for WMP | I14: allocated based on Total less WMP | N14: allocated based on Total less WMP | O14: 1595_(2009) | P14: 1595_(2010) | Q14: 1595_(2011) | R14: 1595_(2012) | S14: 1595_(2013) | T14: 1595_(2014) | U14: 1595_(2015) | V14: 1595_(2017) | W14: 1568
B15: Rate Class | G15: 1550 | H15: 1551 | I15: 1580 | J15: 1580 (Class A) | K15: 1580 (Class B) | L15: 1584 | M15: 1586 | N15: 1588
B16: ='4. Billing Det. for Def-Var'!B17 -> RESIDENTIAL | C16: =IFERROR('4. Billing Det. for Def-Var'!D17/'4. Billing Det. for Def-Var'!D$29,"") -> 0.2978284538 | D16: =IFERROR('4. Billing Det. for Def-Var'!F17/'4. Billing Det. for Def-Var'!F$29,"") -> 0.02286188059 | E16: =IFERROR('4. Billing Det. for Def-Var'!V17/'4. Billing Det. for Def-Var'!V$29,"") -> 0.9227109997 | F16: =IFERROR('4. Billing Det. for Def-Var'!J17/'4. Billing Det. for Def-Var'!J$29,"") -> 0.3507056681 | G16: =IFERROR(G$28*C16,"") -> 179506.4453 | H16: =IFERROR(H$28*E16,"") -> -26494.39872 | I16: =IFERROR(I$28*F16,"") -> -1681058.043 | L16: =IFERROR(L$28*$C16,"") -> -57537.03138 | M16: =IFERROR(M$28*$C16,"") -> 132442.5197 | N16: =IFERROR(N$28*$F16,"") -> -1449772.954 | O16: ='4. Billing Det. for Def-Var'!$L17*O$28 -> 0 | P16: ='4. Billing Det. for Def-Var'!$L17*P$28 -> 0 | Q16: ='4. Billing Det. for Def-Var'!$L17*Q$28 -> 0 | R16: ='4. Billing Det. for Def-Var'!$L17*R$28 -> 0 | S16: ='4. Billing Det. for Def-Var'!$L17*S$28 -> 0 | T16: ='4. Billing Det. for Def-Var'!$L17*T$28 -> 0 | U16: 0 | V16: =+$V$28*'4. Billing Det. for Def-Var'!T17 -> 0 | W16: ='4. Billing Det. for Def-Var'!U17 -> 422844.954
B17: ='4. Billing Det. for Def-Var'!B18 -> GENERAL SERVICE LESS THAN 50 KW | C17: =IFERROR('4. Billing Det. for Def-Var'!D18/'4. Billing Det. for Def-Var'!D$29,"") -> 0.108244756 | D17: =IFERROR('4. Billing Det. for Def-Var'!F18/'4. Billing Det. for Def-Var'!F$29,"") -> 0.03380460008 | E17: =IFERROR('4. Billing Det. for Def-Var'!V18/'4. Billing Det. for Def-Var'!V$29,"") -> 0.07728900025 | F17: =IFERROR('4. Billing Det. for Def-Var'!J18/'4. Billing Det. for Def-Var'!J$29,"") -> 0.1274628028 | G17: =IFERROR(G$28*C17,"") -> 65241.01754 | H17: =IFERROR(H$28*E17,"") -> -2219.249136 | I17: =IFERROR(I$28*F17,"") -> -610974.9268 | L17: =IFERROR(L$28*$C17,"") -> -20911.64173 | M17: 48135.7911 | N17: =IFERROR(N$28*$F17,"") -> -526915.134 | O17: ='4. Billing Det. for Def-Var'!$L18*O$28 -> 0 | P17: ='4. Billing Det. for Def-Var'!$L18*P$28 -> 0 | Q17: ='4. Billing Det. for Def-Var'!$L18*Q$28 -> 0 | R17: ='4. Billing Det. for Def-Var'!$L18*R$28 -> 0 | S17: ='4. Billing Det. for Def-Var'!$L18*S$28 -> 0 | T17: ='4. Billing Det. for Def-Var'!$L18*T$28 -> 0 | U17: 0 | V17: =+$V$28*'4. Billing Det. for Def-Var'!T18 -> 0 | W17: ='4. Billing Det. for Def-Var'!U18 -> 309436.6446
B18: ='4. Billing Det. for Def-Var'!B19 -> GENERAL SERVICE 50 TO 4,999 KW | C18: =IFERROR('4. Billing Det. for Def-Var'!D19/'4. Billing Det. for Def-Var'!D$29,"") -> 0.33934371 | D18: =IFERROR('4. Billing Det. for Def-Var'!F19/'4. Billing Det. for Def-Var'!F$29,"") -> 0.5183197855 | E18: =IFERROR('4. Billing Det. for Def-Var'!V19/'4. Billing Det. for Def-Var'!V$29,"") -> 0 | F18: =IFERROR('4. Billing Det. for Def-Var'!J19/'4. Billing Det. for Def-Var'!J$29,"") -> 0.3995916476 | G18: =IFERROR(G$28*C18,"") -> 204528.4201 | H18: 0 | I18: =IFERROR(I$28*F18,"") -> -1915386.075 | L18: -65557.30133 | M18: 150904.1041 | N18: =IFERROR(N$28*$F18,"") -> -1651861.42 | O18: ='4. Billing Det. for Def-Var'!$L19*O$28 -> 0 | P18: ='4. Billing Det. for Def-Var'!$L19*P$28 -> 0 | Q18: ='4. Billing Det. for Def-Var'!$L19*Q$28 -> 0 | R18: ='4. Billing Det. for Def-Var'!$L19*R$28 -> 0 | S18: ='4. Billing Det. for Def-Var'!$L19*S$28 -> 0 | T18: ='4. Billing Det. for Def-Var'!$L19*T$28 -> 0 | U18: 0 | V18: =+$V$28*'4. Billing Det. for Def-Var'!T19 -> 0 | W18: ='4. Billing Det. for Def-Var'!U19 -> 29282.31561
B19: ='4. Billing Det. for Def-Var'!B20 -> LARGE USE (1) | C19: =IFERROR('4. Billing Det. for Def-Var'!D20/'4. Billing Det. for Def-Var'!D$29,"") -> 0.04271583643 | D19: =IFERROR('4. Billing Det. for Def-Var'!F20/'4. Billing Det. for Def-Var'!F$29,"") -> 0.07194597249 | E19: =IFERROR('4. Billing Det. for Def-Var'!V20/'4. Billing Det. for Def-Var'!V$29,"") -> 0 | F19: =IFERROR('4. Billing Det. for Def-Var'!J20/'4. Billing Det. for Def-Var'!J$29,"") -> 0.04232715945 | G19: 25745.58562 | H19: 0 | I19: -202889.2553 | L19: -8252.208243 | M19: 18995.47521 | N19: -174975.1331 | O19: ='4. Billing Det. for Def-Var'!$L20*O$28 -> 0 | P19: ='4. Billing Det. for Def-Var'!$L20*P$28 -> 0 | Q19: ='4. Billing Det. for Def-Var'!$L20*Q$28 -> 0 | R19: ='4. Billing Det. for Def-Var'!$L20*R$28 -> 0 | S19: ='4. Billing Det. for Def-Var'!$L20*S$28 -> 0 | T19: ='4. Billing Det. for Def-Var'!$L20*T$28 -> 0 | U19: 0 | V19: =+$V$28*'4. Billing Det. for Def-Var'!T20 -> 0 | W19: ='4. Billing Det. for Def-Var'!U20 -> 8567.39913
B20: ='4. Billing Det. for Def-Var'!B21 -> LARGE USE (2) | C20: =IFERROR('4. Billing Det. for Def-Var'!D21/'4. Billing Det. for Def-Var'!D$29,"") -> 0.203541822 | D20: =IFERROR('4. Billing Det. for Def-Var'!F21/'4. Billing Det. for Def-Var'!F$29,"") -> 0.3428240097 | E20: =IFERROR('4. Billing Det. for Def-Var'!V21/'4. Billing Det. for Def-Var'!V$29,"") -> 0 | F20: =IFERROR('4. Billing Det. for Def-Var'!J21/'4. Billing Det. for Def-Var'!J$29,"") -> 0.07010918378 | G20: 122678.2346 | H20: 0 | I20: -336058.4616 | L20: -39321.93868 | M20: 90513.8224 | N20: -289822.5141 | O20: ='4. Billing Det. for Def-Var'!$L21*O$28 -> 0 | P20: ='4. Billing Det. for Def-Var'!$L21*P$28 -> 0 | Q20: ='4. Billing Det. for Def-Var'!$L21*Q$28 -> 0 | R20: ='4. Billing Det. for Def-Var'!$L21*R$28 -> 0 | S20: ='4. Billing Det. for Def-Var'!$L21*S$28 -> 0 | T20: ='4. Billing Det. for Def-Var'!$L21*T$28 -> 0 | U20: 0 | V20: =+$V$28*'4. Billing Det. for Def-Var'!T21 -> 0 | W20: ='4. Billing Det. for Def-Var'!U21 -> 11872.30622
B21: ='4. Billing Det. for Def-Var'!B22 -> UNMETERED SCATTERED LOAD | C21: =IFERROR('4. Billing Det. for Def-Var'!D22/'4. Billing Det. for Def-Var'!D$29,"") -> 0.002198006064 | D21: =IFERROR('4. Billing Det. for Def-Var'!F22/'4. Billing Det. for Def-Var'!F$29,"") -> 0.0001393552407 | E21: =IFERROR('4. Billing Det. for Def-Var'!V22/'4. Billing Det. for Def-Var'!V$29,"") -> 0 | F21: =IFERROR('4. Billing Det. for Def-Var'!J22/'4. Billing Det. for Def-Var'!J$29,"") -> 0.0025882456 | G21: 1324.776899 | H21: 0 | I21: -12406.3894 | L21: -424.6294881 | M21: 977.4400591 | N21: -10699.48053 | O21: ='4. Billing Det. for Def-Var'!$L22*O$28 -> 0 | P21: ='4. Billing Det. for Def-Var'!$L22*P$28 -> 0 | Q21: ='4. Billing Det. for Def-Var'!$L22*Q$28 -> 0 | R21: ='4. Billing Det. for Def-Var'!$L22*R$28 -> 0 | S21: ='4. Billing Det. for Def-Var'!$L22*S$28 -> 0 | T21: ='4. Billing Det. for Def-Var'!$L22*T$28 -> 0 | U21: 0 | V21: =+$V$28*'4. Billing Det. for Def-Var'!T22 -> 0 | W21: ='4. Billing Det. for Def-Var'!U22 -> 0
B22: ='4. Billing Det. for Def-Var'!B23 -> SENTINEL LIGHTING | C22: =IFERROR('4. Billing Det. for Def-Var'!D23/'4. Billing Det. for Def-Var'!D$29,"") -> 8.521884932e-05 | D22: =IFERROR('4. Billing Det. for Def-Var'!F23/'4. Billing Det. for Def-Var'!F$29,"") -> 1.812952151e-06 | E22: =IFERROR('4. Billing Det. for Def-Var'!V23/'4. Billing Det. for Def-Var'!V$29,"") -> 0 | F22: =IFERROR('4. Billing Det. for Def-Var'!J23/'4. Billing Det. for Def-Var'!J$29,"") -> 0.0001003488186 | G22: 51.36289875 | H22: 0 | I22: -481.0078764 | L22: -16.46330143 | M22: 37.89630906 | N22: -414.8293466 | O22: ='4. Billing Det. for Def-Var'!$L23*O$28 -> 0 | P22: ='4. Billing Det. for Def-Var'!$L23*P$28 -> 0 | Q22: ='4. Billing Det. for Def-Var'!$L23*Q$28 -> 0 | R22: ='4. Billing Det. for Def-Var'!$L23*R$28 -> 0 | S22: ='4. Billing Det. for Def-Var'!$L23*S$28 -> 0 | T22: ='4. Billing Det. for Def-Var'!$L23*T$28 -> 0 | U22: 0 | V22: =+$V$28*'4. Billing Det. for Def-Var'!T23 -> 0 | W22: ='4. Billing Det. for Def-Var'!U23 -> 0
B23: ='4. Billing Det. for Def-Var'!B24 -> STREET LIGHTING | C23: =IFERROR('4. Billing Det. for Def-Var'!D24/'4. Billing Det. for Def-Var'!D$29,"") -> 0.006042196961 | D23: =IFERROR('4. Billing Det. for Def-Var'!F24/'4. Billing Det. for Def-Var'!F$29,"") -> 0.01010258347 | E23: =IFERROR('4. Billing Det. for Def-Var'!V24/'4. Billing Det. for Def-Var'!V$29,"") -> 0 | F23: =IFERROR('4. Billing Det. for Def-Var'!J24/'4. Billing Det. for Def-Var'!J$29,"") -> 0.007114943838 | G23: 3641.738338 | H23: 0 | I23: -34104.4775 | L23: -1167.28295 | M23: 2686.928599 | N23: -29412.27953 | O23: ='4. Billing Det. for Def-Var'!$L24*O$28 -> 0 | P23: ='4. Billing Det. for Def-Var'!$L24*P$28 -> 0 | Q23: ='4. Billing Det. for Def-Var'!$L24*Q$28 -> 0 | R23: ='4. Billing Det. for Def-Var'!$L24*R$28 -> 0 | S23: ='4. Billing Det. for Def-Var'!$L24*S$28 -> 0 | T23: ='4. Billing Det. for Def-Var'!$L24*T$28 -> 0 | U23: 0 | V23: =+$V$28*'4. Billing Det. for Def-Var'!T24 -> 0 | W23: ='4. Billing Det. for Def-Var'!U24 -> 127901.8048
B24: ='4. Billing Det. for Def-Var'!B25 -> 0 | O24: ='4. Billing Det. for Def-Var'!$L25*O$28 -> 0 | P24: ='4. Billing Det. for Def-Var'!$L25*P$28 -> 0 | Q24: ='4. Billing Det. for Def-Var'!$L25*Q$28 -> 0 | R24: ='4. Billing Det. for Def-Var'!$L25*R$28 -> 0 | S24: ='4. Billing Det. for Def-Var'!$L25*S$28 -> 0 | T24: ='4. Billing Det. for Def-Var'!$L25*T$28 -> 0
B25: ='4. Billing Det. for Def-Var'!B26 -> 0
C28: =SUM(C16:C27) -> 1 | D28: =SUM(D16:D27) -> 1 | E28: =SUM(E16:E27) -> 1 | F28: =SUM(F16:F27) -> 1 | G28: ='3. Continuity Schedule'!CN21 -> 602717.5814 | H28: ='3. Continuity Schedule'!CN22 -> -28713.64785 | I28: ='3. Continuity Schedule'!CN23+'3. Continuity Schedule'!CN25 -> -4793358.637 | L28: ='3. Continuity Schedule'!CN26 -> -193188.4971 | M28: ='3. Continuity Schedule'!CN27 -> 444693.9775 | N28: ='3. Continuity Schedule'!CN28 -> -4133873.745 | W28: =SUM(W16:W27) -> 909905.4244
G29: =SUM(G16:G27)-G28 -> 0 | H29: =SUM(H16:H27)-H28 -> 0 | I29: 0 | J29: 0 | K29: 0 | L29: 0 | M29: 0 | N29: 0 | O29: 0 | P29: 0 | Q29: 0 | R29: 0 | S29: 0 | T29: 0 | U29: 0 | V29: 0 | W29: 0
B32: ** Used to allocate Account 1551 as this account records the variances arising from the Smart Metering Entity Charges to Residential and GS<50 customers.

Sheet 6. GA Calculation
A1: Back to Index
B2: =+'1. Information Sheet'!B2 -> INCENTIVE REGULATION MODEL FOR 2019 FILERS
I12: Default Rate Rider Recovery Period (in months) | K12: 12
B13: The purpose of this tab is to calculate the GA rate riders for all current Class B customers of the distributor. Identify the total billed consumption for former Class B customers prior to becoming Class A customers in Column G. Effective January 2017, the billing determinant and all rate riders for the disposition of GA balances will be calculated on an energy basis (kWhs) regardless of the billing determinant used for distribution rates for the particular class (see Chapter 3, Filing Requirements, section 3.2.5.2) | I13: Proposed Rate Rider Recovery Period (in months) | K13: 11
C14: Total Metered Non-RPP consumption minus WMP | E14: Total Metered Class A Consumption in 2017 (partial and/or full year Class A customers)* | G14: Total Metered Consumption for New Class A customer(s) in the period prior to becoming Class A (i.e. Jan. 1 - June 30, 2017) | H14: Total Metered Consumption for New Class B customer(s) in the period after becoming Class B (i.e. Jul 1 - Dec 31, 2017) | I14: Metered Consumption for Current Class B Customers (Non-RPP consumption LESS WMP, Class A and new Class A's former Class B consumption if applicable) | K14: % of total kWh | L14: Total GA $ allocated to Current Class B Customers | M14: GA Rate Rider | O14: Revenue Reconciliation | P14: Variance
C15: kWh | D15: kW | E15: kWh | F15: kW | G15: kWh | H15: kWh | I15: kWh | J15: kW
B17: ='4. Billing Det. for Def-Var'!B17 -> RESIDENTIAL | C17: ='4. Billing Det. for Def-Var'!F17-'4. Billing Det. for Def-Var'!H17 -> 70075468 | I17: =C17-E17-G17-H17 -> 70075468 | K17: =IFERROR(I17/I$29,"") -> 0.05130980277 | L17: =IFERROR(L$29*K17,"") -> -15059.05157 | M17: =ROUND(IF(ISERROR(L17/I17),0,IF(OR(ISBLANK($K$13), OR($K$13=0, $K$13="")), L17/I17/($K$12/12), L17/I17/($K$13/12))),4) -> -0.0002 | N17: kwh | O17: =ROUND(M17,4)*I17 -> -14015.0936 | P17: =L17-O17 -> -1043.95797
B18: ='4. Billing Det. for Def-Var'!B18 -> GENERAL SERVICE LESS THAN 50 KW | C18: ='4. Billing Det. for Def-Var'!F18-'4. Billing Det. for Def-Var'!H18 -> 103616724 | I18: =C18-E18-G18-H18 -> 103616724 | K18: =IFERROR(I18/I$29,"") -> 0.07586897132 | L18: =IFERROR(L$29*K18,"") -> -22266.98779 | M18: =ROUND(IF(ISERROR(L18/I18),0,IF(OR(ISBLANK($K$13), OR($K$13=0, $K$13="")), L18/I18/($K$12/12), L18/I18/($K$13/12))),4) -> -0.0002 | N18: kwh | O18: =ROUND(M18,4)*I18 -> -20723.3448 | P18: =L18-O18 -> -1543.642988
B19: ='4. Billing Det. for Def-Var'!B19 -> GENERAL SERVICE 50 TO 4,999 KW | C19: ='4. Billing Det. for Def-Var'!F19-'4. Billing Det. for Def-Var'!H19 -> 1588736386 | E19: 294613747 | G19: 127847550 | H19: 5633530 | I19: =C19-E19-G19-H19 -> 1160641559 | K19: 0.8498307779 | L19: =IFERROR(L$29*K19,"") -> -249419.1133 | M19: -0.0002 | N19: kwh | O19: -232128.3118 | P19: -17290.80148
B20: ='4. Billing Det. for Def-Var'!B20 -> LARGE USE (1) | C20: ='4. Billing Det. for Def-Var'!F20-'4. Billing Det. for Def-Var'!H20 -> 185572728.5 | E20: 185572728.5 | I20: 0 | K20: 0 | L20: 0 | M20: 0 | N20: kwh | O20: 0 | P20: 0
B21: ='4. Billing Det. for Def-Var'!B21 -> LARGE USE (2) | C21: ='4. Billing Det. for Def-Var'!F21-'4. Billing Det. for Def-Var'!H21 -> 307375989.7 | E21: 307375989.7 | I21: 0 | K21: =IFERROR(I21/I$29,"") -> 0 | L21: 0 | M21: =ROUND(IF(ISERROR(L21/I21),0,IF(OR(ISBLANK($K$13), OR($K$13=0, $K$13="")), L21/I21/($K$12/12), L21/I21/($K$13/12))),4) -> 0 | N21: kwh | O21: 0 | P21: 0
B22: ='4. Billing Det. for Def-Var'!B22 -> UNMETERED SCATTERED LOAD | C22: ='4. Billing Det. for Def-Var'!F22-'4. Billing Det. for Def-Var'!H22 -> 427147 | I22: 427147 | K22: 0.0003127603561 | L22: -91.79287537 | M22: -0.0002 | N22: kwh | O22: -85.4294 | P22: -6.363475374
B23: ='4. Billing Det. for Def-Var'!B23 -> SENTINEL LIGHTING | C23: ='4. Billing Det. for Def-Var'!F23-'4. Billing Det. for Def-Var'!H23 -> 5557 | I23: 5557 | K23: 4.068878627e-06 | L23: -1.194186096 | M23: -0.0002 | N23: kwh | O23: -1.1114 | P23: -0.08278609624
B24: ='4. Billing Det. for Def-Var'!B24 -> STREET LIGHTING | C24: ='4. Billing Det. for Def-Var'!F24-'4. Billing Det. for Def-Var'!H24 -> 30966099.31 | I24: 30966099.31 | K24: 0.02267361879 | L24: -6654.541164 | M24: -0.0002 | N24: kwh | O24: -6193.219861 | P24: -461.3213024
C29: =SUM(C17:C28) -> 2286776100 | D29: =SUM(D17:D28) -> 0 | E29: 787562465.2 | F29: 0 | G29: 127847550 | H29: 5633530 | I29: 1365732554 | J29: 0 | K29: 1 | L29: ='6B. GA Allocation_new Class B'!D28 -> -293492.6809 | O29: =SUM(O17:O28) -> -273146.5109 | P29: =SUM(P17:P28) -> -20346.17
L30: from Sheet 6B
O31: NOTE: if rate rider is at 5 decimal places, then the balance dispostion is in full
B32: *For new Class A customers (who became Class A in 2017), add their consumption only related to July to December period.

Sheet 6A. GA Allocation_Class A
A1: Back to Index
B2: =+'1. Information Sheet'!B2 -> INCENTIVE REGULATION MODEL FOR 2019 FILERS
B12: This tab allocates the GA balance to former Class B customers who contributed to the current GA balance but are now Class A customers. The tables below calculate specific amounts for each customer who made the change. Consistent with both decisions for 2016 rates and EDDVAR, distributors are generally expected to settle the amount through 12 equal adjustments to bills. A one-time settlement is acceptable if the affected customer has expressed a clear preference for this approach. (see Filing Requirements section 3.2.5.2)
B14: Year of Group 1 Account Balance Last Disposed | C14: 2016 | D14: (e.g. If in the 2017 EDR process, you received approval to dispose the GA variance account balance as of December 31, 2014, please enter 2014 in cell C16.)
B16: Allocation of total Non-RPP consumption (kWh) between Class B and New Class A (Former Class B) customers
D17: Total | E17: 2017 | F17: 2016 | G17: 2015 | H17: 2014 | I17: 2013 | J17: 2012
B18: Total Class B Consumption for Years Since Last Disposition (Non-RPP consumption LESS WMP and Class A) | C18: A | D18: =SUM(E18:J18) -> 1499213634 | E18: ='6. GA Calculation'!C29-'6. GA Calculation'!E29 -> 1499213634 | G18: 0
B19: New Class A Customer(s)' Former Class B Consumption | C19: B | D19: =SUM(E19:J19) -> 127847550 | E19: =E69 -> 127847550 | G19: 0 | H19: =H69 -> 0 | I19: =I69 -> 0 | J19: =J69 -> 0
B20: Portion of Consumption of Former Class B Customers | C20: C=B/A | D20: =IFERROR(+D19/D18,0) -> 0.08527640563
B23: Allocation of Total GA Balance $
B25: Total GA Balance | C25: D | D25: ='3. Continuity Schedule'!CN29 -> -322177.4478
B26: New Class A Customer(s)' Former Class B Portion of GA Balance | C26: E=C*D | D26: =+D20*D25 -> -27474.13472
B27: GA Balance to be disposed to Current Class B Customers (if no Class A to Class B Transition Customers) | C27: F=D-E | D27: =+D25-D26 -> -294703.3131 | P27: s
B29: Allocation of GA Balances to Former Class B Customers
B31: # of Former Class B customer(s) | F31: 2 | G31: 9
B32: Customer | D32: Total Metered kWh Consumption for each new Class A customer for the period prior to becoming Class A | E32: 2017 | F32: Metered kWh Consumption for each new Class A customer for the period prior to becoming Class A in 2016 | G32: Metered kWh Consumption for each new Class A customer for the period prior to becoming Class A in 2015 | H32: Metered kWh Consumption for each new Class A customer for the period prior to becoming Class A in 2014 | I32: Metered kWh Consumption for each new Class A customer for the period prior to becoming Class A in 2013 | J32: Metered kWh Consumption for each new Class A customer for the period prior to becoming Class A in 2012 | K32: % of kWh | L32: Customer specific GA allocation for the period prior to becoming Class A | M32: Monthly Equal Payments
B33: Customer 1 | D33: =SUM(E33:J33) -> 1112523 | E33: 1112523 | K33: =IFERROR(+D33/$D$69,0) -> 0.008701950096 | L33: =+K33*$D$26 -> -239.0785493 | M33: =+L33/8 -> -29.88481866
B34: Customer 2 | D34: =SUM(E34:J34) -> 11119481 | E34: 11119481 | K34: 0.08697453334 | L34: =+K34*$D$26 -> -2389.550046 | M34: =+L34/8 -> -298.6937558
B35: Customer 3 | D35: 1259299 | E35: 1259299 | K35: 0.009850004947 | L35: -270.6203629 | M35: -33.82754537
B36: Customer 4 | D36: 2132444 | E36: 2132444 | K36: 0.0166795844 | L36: -458.2571488 | M36: -57.2821436
B37: Customer 5 | D37: 1331127 | E37: 1331127 | K37: 0.01041183034 | L37: -286.0560295 | M37: -35.75700368
B38: Customer 6 | D38: 2762887 | E38: 2762887 | K38: 0.02161079348 | L38: -593.7378515 | M38: -74.21723144
B39: Customer 7 | D39: 6256539 | E39: 6256539 | K39: 0.04893749626 | L39: -1344.515365 | M39: -168.0644206
B40: Customer 8 | D40: 999971 | E40: 999971 | K40: 0.007821589072 | L40: =+K40*$D$26 -> -214.8913919 | M40: -26.86142399
B41: Customer 9 | D41: 7013680 | E41: 7013680 | K41: 0.05485971378 | L41: -1507.223167 | M41: -188.4028959
B42: Customer 10 | D42: 3468287 | E42: 3468287 | K42: 0.02712830242 | L42: -745.3266354 | M42: -93.16582943
B43: Customer 11 | D43: 5796244 | E43: 5796244 | K43: 0.04533715351 | L43: -1245.599063 | M43: -155.6998829
B44: Customer 12 | D44: 7763800 | E44: 7763800 | K44: 0.06072701432 | L44: -1668.422173 | M44: -208.5527716
B45: Customer 13 | D45: 5278662 | E45: 5278662 | K45: 0.04128872239 | L45: -1134.371921 | M45: -141.7964902
B46: Customer 14 | D46: 3940838 | E46: 3940838 | K46: 0.03082450935 | L46: -846.8767225 | M46: -105.8595903
B47: Customer 15 | D47: 6298192 | E47: 6298192 | K47: 0.04926329836 | L47: -1353.466496 | M47: -169.183312
B48: Customer 16 | D48: 4930067 | E48: 4930067 | K48: 0.03856207647 | L48: -1059.459684 | M48: -132.4324605
B49: Customer 17 | D49: 3018648 | E49: 3018648 | K49: 0.02361130894 | L49: -648.7002827 | M49: -81.08753534
B50: Customer 18 | D50: 3108153 | E50: 3108153 | K50: 0.02431140057 | L50: -667.9346945 | M50: -83.49183682
B51: Customer 19 | D51: 1506099 | E51: 1506099 | K51: 0.01178042911 | L51: -323.6570965 | M51: -40.45713707
B52: Customer 20 | D52: 2076084 | E52: 2076084 | K52: 0.01623874685 | L52: -446.1455187 | M52: -55.76818984
B53: Customer 21 | D53: 5424020 | E53: 5424020 | K53: 0.0424256859 | L53: -1165.60901 | M53: -145.7011263
B54: Customer 22 | D54: 2583905 | E54: 2583905 | K54: 0.02021082923 | L54: -555.275045 | M54: -69.40938062
B55: Customer 23 | D55: 2529573 | E55: 2529573 | K55: 0.01978585432 | L55: =+K55*$D$26 -> -543.5992273 | M55: -67.94990341
B56: Customer 24 | D56: 3390659 | E56: 3390659 | K56: 0.02652111049 | L56: -728.6445627 | M56: -91.08057034
B57: Customer 25 | D57: 1161128 | E57: 1161128 | K57: 0.009082129458 | L57: -249.5236483 | M57: -31.19045604
B58: Customer 26 | D58: 2421761 | E58: 2421761 | K58: 0.01894256871 | L58: -520.4306847 | M58: -65.05383558
B59: Customer 27 | D59: 1568280 | E59: 1568280 | K59: 0.01226679745 | L59: -337.0196457 | M59: -42.12745571
B60: Customer 28 | D60: 3124881 | E60: 3124881 | K60: 0.02444224391 | L60: -671.529502 | M60: -83.94118775
B61: Customer 29 | D61: 2706410 | E61: 2706410 | K61: 0.02116904078 | L61: -581.6010784 | M61: -72.7001348
B62: Customer 30 | D62: 3613039 | E62: 3613039 | K62: 0.02826052592 | L62: -776.4334963 | M62: -97.05418704
B63: Customer 31 | D63: 3605652 | E63: 3605652 | K63: 0.02820274616 | L63: -774.8460476 | M63: -96.85575594
B64: Customer 32 | D64: 1802628 | E64: 1802628 | K64: 0.01409982436 | L64: -387.3804741 | M64: -48.42255926
B65: Customer 33 | D65: 736499 | E65: 736499 | K65: 0.005760759592 | L65: -158.2718851 | M65: -19.78398564
B66: Customer 34 | D66: 3439510 | E66: 3439510 | K66: 0.02690321402 | L66: -739.1425265 | M66: -92.39281582
B67: Customer 35 | D67: 792832 | E67: 792832 | K67: 0.006201385948 | L67: -170.377713 | M67: -21.29721412
B68: Customer 36 | D68: 7773748 | E68: 7773748 | K68: 0.06080482575 | L68: -1670.559974 | M68: -208.8199968
B69: Total | D69: =SUM(D33:D68) -> 127847550 | E69: =SUM(E33:E68) -> 127847550 | F69: =SUM(F33:F43) -> 0 | G69: =SUM(G33:G43) -> 0 | H69: =SUM(H33:H39) -> 0 | I69: 0 | J69: 0 | K69: =SUM(K33:K68) -> 1 | L69: =SUM(L33:L68) -> -27474.13472

Sheet 6B. GA Allocation_new Class B
A1: Back to Index
B2: =+'1. Information Sheet'!B2 -> INCENTIVE REGULATION MODEL FOR 2019 FILERS
B12: This tab allocates the GA balance to former Class A customers who contributed to the current Class B GA balance once switched to Class B customers. The tables below calculate specific amounts for each customer who made the transition. Consistent with both decisions for 2016 rates and EDDVAR, distributors are generally expected to settle the amount through 12 equal adjustments to bills. A one-time settlement is acceptable if the affected customer has expressed a clear preference for this approach. (see Filing Requirements section 3.2.5.2)
B14: Year of Group 1 Account Balance Last Disposed | C14: 2016 | D14: (e.g. If in the 2017 EDR process, you received approval to dispose the GA variance account balance as of December 31, 2014, please enter 2014 in cell C16.)
B16: Allocation of total Non-RPP consumption (kWh) between Class B and New Class B (Former Class A) customers
D17: Total | E17: 2017 | F17: 2016 | G17: 2015 | H17: 2014 | I17: 2013 | J17: 2012
B18: Total Class B Consumption for Years Since Last Disposition (Non-RPP consumption LESS WMP and Class A) | C18: A | D18: =SUM(E18:J18) -> 1499213634 | E18: ='6. GA Calculation'!C29-'6. GA Calculation'!E29 -> 1499213634
B19: New Class B Customer(s)' Consumption | C19: B | D19: =SUM(E19:J19) -> 5633530 | E19: =E42 -> 5633530 | G19: =G42 -> 0 | H19: =H42 -> 0 | I19: =I42 -> 0 | J19: =J42 -> 0
B20: Portion of Consumption of New Class B Customers | C20: C=B/A | D20: =IFERROR(+D19/D18,0) -> 0.003757656595
B23: Allocation of Total GA Balance $
B25: Total GA Calss B Balance adjusted for Class A | C25: D | D25: ='6A. GA Allocation_Class A'!D25 -> -322177.4478
B26: New Class B Customer(s)' Former Class A Portion of GA Balance attributable to Class B | C26: E=C*D | D26: =+D20*D25 -> -1210.632211
B27: New Class A Customer(s)' Former Class B Portion of GA Balance | C27: F=Sheet 6A | D27: ='6A. GA Allocation_Class A'!D26 -> -27474.13472
B28: GA Balance to be disposed to Current Class B Customers | C28: G=D-E-F | D28: =+D25-D26-D27 -> -293492.6809 | F28: Input into Sheet 6. GA Calculation | P28: s
B30: Allocation of GA Balances to Former Class A Customers
B31: # of Former Class B customer(s) | E31: 2017
B32: Customer | D32: Total Metered kWh Consumption for each new Class B customer for the period after becoming Class B | F32: Metered kWh Consumption for each new Class B customer for the period after becoming Class B in 2016 | G32: Metered kWh Consumption for each new Class B customer for the period prior to becoming Class B in 2015 | H32: Metered kWh Consumption for each new Class B customer for the period prior to becoming Class B in 2014 | I32: Metered kWh Consumption for each new Class B customer for the period prior to becoming Class B in 2013 | J32: Metered kWh Consumption for each new Class B customer for the period prior to becoming Class B in 2012 | K32: % of kWh | L32: Customer specific GA allocation for the period after becoming Class B | M32: Monthly Equal Payments
B33: Customer 1 | D33: =SUM(E33:J33) -> 5633530 | E33: 5633530 | K33: =IFERROR(+D33/$D$42,0) -> 1 | L33: =+K33*$D$26 -> -1210.632211 | M33: =+L33/8 -> -151.3290264
K34: 0 | L34: =+K34*$D$26 -> 0 | M34: =+L34/12 -> 0
K35: 0 | L35: 0 | M35: 0
K36: 0 | L36: 0 | M36: 0
K37: 0 | L37: 0 | M37: 0
K38: 0 | L38: 0 | M38: 0
K39: 0 | L39: 0 | M39: 0
K40: 0 | L40: 0 | M40: 0
K41: 0 | L41: 0 | M41: 0
B42: Total | D42: =SUM(D33:D41) -> 5633530 | E42: =SUM(E33:E41) -> 5633530 | F42: =SUM(F33:F41) -> 0 | G42: =SUM(G33:G41) -> 0 | H42: =SUM(H33:H37) -> 0 | I42: 0 | J42: 0 | K42: =SUM(K33:K41) -> 1 | L42: =SUM(L33:L41) -> -1210.632211

Sheet 7. CBR Calculation
A1: Back to Index
B2: =+'1. Information Sheet'!B2 -> INCENTIVE REGULATION MODEL FOR 2019 FILERS
B13: The purpose of this tab is to calculate the CBR rate riders for all current Class B customers of the distributor. Identify and input the total billed consumption for former Class B customers prior to becoming Class A customers in Column H. Identify and input the total billed consumption for former Class A customers after becoming Class B customers in Column H.
B15: Account 1580
B16: Variance WMS – Sub-account CBR Class A | C16: ='3. Continuity Schedule'!CN24 -> 0.0002200000004
B17: Variance WMS – Sub-account CBR Class B | C17: ='3. Continuity Schedule'!CN25 -> -56031.71486
C19: Total Metered LESS WMP | E19: Total Metered Class A Consumption/Demand in 2016 (partial and/or full year Class A customers)* | G19: Total Metered Consumption/Demand for New Class A customer(s) in the period prior to becoming Class A (i.e. Jan 1 - Jun 30, 2016) | I19: Total Metered Consumption for New Class B customer(s) in the period after becoming Class B (i.e. Jul 1 - Dec 31, 2016) | K19: Metered Consumption for Current Class B Customers (metered consumption/demand LESS WMP, Class A and new Class A's former Class B, if applicable) | M19: % of total kWh | N19: Total CBR $ allocated to Current Class B Customers | O19: CBR Rate Rider | Q19: Calculated CBR Rate Rider
C20: kWh | D20: kW | E20: kWh | F20: kW | G20: kWh | H20: kW | I20: kWh | J20: kW | K20: kWh | L20: kW
A22: R_CBR19 | B22: ='4. Billing Det. for Def-Var'!B17 -> RESIDENTIAL | C22: ='4. Billing Det. for Def-Var'!D17-'4. Billing Det. for Def-Var'!H17 -> 1537580329 | D22: ='4. Billing Det. for Def-Var'!E17-'4. Billing Det. for Def-Var'!I17 -> 0 | E22: ='6. GA Calculation'!E17 -> 0 | G22: ='6. GA Calculation'!G17 -> 0 | I22: ='6. GA Calculation'!H17 -> 0 | K22: =C22-E22-G22-I22 -> 1537580329 | L22: =D22-F22-H22-J22 -> 0 | M22: =IFERROR(K22/K$34,"") -> 0.4439763008 | N22: =IFERROR(N$34*M22,"") -> -24876.75349 | O22: 0 | P22: kwh | Q22: =ROUND(IFERROR(IF(P22="kwh",N22/K22,N22/L22),0),5) -> -2e-05
A23: GSL_CBR19 | B23: ='4. Billing Det. for Def-Var'!B18 -> GENERAL SERVICE LESS THAN 50 KW | C23: ='4. Billing Det. for Def-Var'!D18-'4. Billing Det. for Def-Var'!H18 -> 558828431 | D23: ='4. Billing Det. for Def-Var'!E18-'4. Billing Det. for Def-Var'!I18 -> 0 | E23: ='6. GA Calculation'!E18 -> 0 | G23: ='6. GA Calculation'!G18 -> 0 | I23: ='6. GA Calculation'!H18 -> 0 | K23: =C23-E23-G23-I23 -> 558828431 | L23: =D23-F23-H23-J23 -> 0 | M23: =IFERROR(K23/K$34,"") -> 0.1613617025 | N23: =IFERROR(N$34*M23,"") -> -9041.372904 | O23: 0 | P23: kwh | Q23: =ROUND(IFERROR(IF(P23="kwh",N23/K23,N23/L23),0),5) -> -2e-05
A24: GSG_CBR19 | B24: ='4. Billing Det. for Def-Var'!B19 -> GENERAL SERVICE 50 TO 4,999 KW | C24: ='4. Billing Det. for Def-Var'!D19-'4. Billing Det. for Def-Var'!H19 -> 1751908545 | D24: ='4. Billing Det. for Def-Var'!E19-'4. Billing Det. for Def-Var'!I19 -> 4824433.383 | E24: ='6. GA Calculation'!E19 -> 294613747 | F24: 674039.69 | G24: ='6. GA Calculation'!G19 -> 127847550 | H24: 337632.35 | I24: ='6. GA Calculation'!H19 -> 5633530 | J24: 13722.77 | K24: 1323813718 | L24: 3799038.573 | M24: 0.3822511946 | N24: -21418.18994 | O24: 0 | P24: kW | Q24: -0.00564
A25: LU_CBR19 | B25: ='4. Billing Det. for Def-Var'!B20 -> LARGE USE (1) | C25: ='4. Billing Det. for Def-Var'!D20-'4. Billing Det. for Def-Var'!H20 -> 185572728.5 | D25: ='4. Billing Det. for Def-Var'!E20-'4. Billing Det. for Def-Var'!I20 -> 338314.5322 | E25: ='6. GA Calculation'!E20 -> 185572728.5 | F25: 338314.5322 | G25: ='6. GA Calculation'!G20 -> 0 | H25: 0 | I25: ='6. GA Calculation'!H20 -> 0 | J25: 0 | K25: 0 | L25: 0 | M25: 0 | N25: 0 | O25: 0 | P25: kW | Q25: 0
A26: LUDA_CBR19 | B26: ='4. Billing Det. for Def-Var'!B21 -> LARGE USE (2) | C26: ='4. Billing Det. for Def-Var'!D21-'4. Billing Det. for Def-Var'!H21 -> 307375989.7 | D26: ='4. Billing Det. for Def-Var'!E21-'4. Billing Det. for Def-Var'!I21 -> 790236.978 | E26: ='6. GA Calculation'!E21 -> 307375989.7 | F26: 790236.978 | G26: ='6. GA Calculation'!G21 -> 0 | I26: ='6. GA Calculation'!H21 -> 0 | K26: 0 | L26: 0 | M26: 0 | N26: 0 | O26: 0 | P26: kW | Q26: 0
A27: USL_CBR19 | B27: ='4. Billing Det. for Def-Var'!B22 -> UNMETERED SCATTERED LOAD | C27: ='4. Billing Det. for Def-Var'!D22-'4. Billing Det. for Def-Var'!H22 -> 11347508.42 | D27: ='4. Billing Det. for Def-Var'!E22-'4. Billing Det. for Def-Var'!I22 -> 0 | E27: ='6. GA Calculation'!E22 -> 0 | G27: ='6. GA Calculation'!G22 -> 0 | I27: ='6. GA Calculation'!H22 -> 0 | K27: 11347508.42 | L27: 0 | M27: 0.003276592914 | N27: -183.5931199 | O27: 0 | P27: kWh | Q27: -2e-05
A28: SEN_CBR19 | B28: ='4. Billing Det. for Def-Var'!B23 -> SENTINEL LIGHTING | C28: ='4. Billing Det. for Def-Var'!D23-'4. Billing Det. for Def-Var'!H23 -> 439954.0228 | D28: ='4. Billing Det. for Def-Var'!E23-'4. Billing Det. for Def-Var'!I23 -> 946.9101177 | E28: ='6. GA Calculation'!E23 -> 0 | G28: ='6. GA Calculation'!G23 -> 0 | I28: ='6. GA Calculation'!H23 -> 0 | K28: 439954.0228 | L28: 946.9101177 | M28: =IFERROR(K28/K$34,"") -> 0.0001270367186 | N28: -7.118085195 | O28: 0 | P28: kW | Q28: -0.00752
A29: SL_CBR19 | B29: ='4. Billing Det. for Def-Var'!B24 -> STREET LIGHTING | C29: ='4. Billing Det. for Def-Var'!D24-'4. Billing Det. for Def-Var'!H24 -> 31193672.3 | D29: ='4. Billing Det. for Def-Var'!E24-'4. Billing Det. for Def-Var'!I24 -> 87344.171 | E29: ='6. GA Calculation'!E24 -> 0 | G29: ='6. GA Calculation'!G24 -> 0 | I29: ='6. GA Calculation'!H24 -> 0 | K29: 31193672.3 | L29: 87344.171 | M29: 0.009007172489 | N29: -504.6873206 | O29: 0 | P29: kW | Q29: -0.00578
C34: =SUM(C22:C33) -> 4384247158 | D34: =SUM(D22:D33) -> 6041275.974 | E34: 787562465.2 | F34: 1802591.2 | G34: 127847550 | H34: 337632.35 | I34: =SUM(I22:I33) -> 5633530 | J34: 13722.77 | K34: 3463203612 | L34: 3887329.654 | M34: 1 | N34: ='7B. CBR Allocation_new Class B'!D28 -> -56031.71486
N35: from Sheet 7B
B37: *For new Class A customers (who became Class A in 2016), add their consumption only related to July to December period. | I37: If the allocated Account 1580 sub-account CBR Class B amount does not produce a rate rider in one or more rate class (except for the Standby rate class), a distributor is to transfer the entire OEB-approved CBR Class B amount into Account 1580 WMS control account to be disposed through the general purpose Group 1 DVA rate riders. (see Accounting Guidance, Capacity Based Recovery xxxxx, 2018)

Sheet 7A. CBR Allocation_Class A
A1: Back to Index
B2: =+'1. Information Sheet'!B2 -> INCENTIVE REGULATION MODEL FOR 2019 FILERS
B12: This tab allocates the CBR balance to former Class B customers who contributed to the current CBR balance but are now Class A customers. The tables below calculate specific amounts for each customer who made the change. Consistent with both decisions for 2016 rates and EDDVAR, distributors are generally expected to settle the amount through 12 equal adjustments to bills. A one-time settlement is acceptable if the affected customer has expressed a clear preference for this approach. (see Filing Requirements section 3.2.5.2)
B14: Year of Group 1 Account Balance Last Disposed | C14: 2016
B16: Allocation of total Non-RPP consumption (kWh) between Class B and New Class A (Former Class B) customers
D17: Total | E17: 2017 | F17: 2016
B18: Total MeteredConsumption for Years Since Last Disposition (consumption LESS WMP and Class A) | C18: A | D18: =SUM(E18:J18) -> 3596684692 | E18: ='7. CBR Calculation'!C34-'7. CBR Calculation'!E34 -> 3596684692
B19: New Class A Customer(s)' Former Class B Consumption | C19: B | D19: =SUM(E19:J19) -> 127847550 | E19: =E69 -> 127847550
B20: Portion of Consumption of Former Class B Customers | C20: C=B/A | D20: =IFERROR(+D19/D18,0) -> 0.03554594326
B23: Allocation of Total CBR Class B Balance $
B25: Total CBR-Class B Balance | C25: D | D25: ='7. CBR Calculation'!C17 -> -56031.71486
B26: New Class A Customer(s)' Former Class B Portion of CBR-Class B Balance | C26: E=C*D | D26: 0
B27: CBR-Class B Balance to be disposed to Current Class B Customers (if no Class A to Class B Transition Customers) | C27: F=D-E | D27: =+D25-D26 -> -56031.71486 | P27: s
B29: Allocation of CBR Class B Balances to Former Class B Customers
B31: # of Former Class B customer(s)
B32: Customer | D32: Total Metered kWh Consumption for each new Class A customer for the period prior to becoming Class A | E32: 2017 | F32: Metered kWh Consumption for each new Class A customer for the period prior to becoming Class A in 2016 | K32: % of kWh | L32: Customer specific CBR-Class B allocation for the period prior to becoming Class A | M32: Monthly Equal Payments
B33: Customer 1 | D33: =SUM(E33:J33) -> 1112523 | E33: ='6A. GA Allocation_Class A'!E33 -> 1112523 | K33: =IFERROR(+D33/$D$69,0) -> 0.008701950096 | L33: =+K33*$D$26 -> 0 | M33: =+L33/8 -> 0
B34: Customer 2 | D34: =SUM(E34:J34) -> 11119481 | E34: ='6A. GA Allocation_Class A'!E34 -> 11119481 | K34: 0.08697453334 | L34: =+K34*$D$26 -> 0 | M34: =+L34/8 -> 0
B35: Customer 3 | D35: =SUM(E35:J35) -> 1259299 | E35: ='6A. GA Allocation_Class A'!E35 -> 1259299 | K35: 0.009850004947 | L35: 0 | M35: 0
B36: Customer 4 | D36: 2132444 | E36: ='6A. GA Allocation_Class A'!E36 -> 2132444 | K36: 0.0166795844 | L36: 0 | M36: 0
B37: Customer 5 | D37: 1331127 | E37: ='6A. GA Allocation_Class A'!E37 -> 1331127 | K37: 0.01041183034 | L37: 0 | M37: 0
B38: Customer 6 | D38: 2762887 | E38: ='6A. GA Allocation_Class A'!E38 -> 2762887 | K38: 0.02161079348 | L38: 0 | M38: 0
B39: Customer 7 | D39: 6256539 | E39: ='6A. GA Allocation_Class A'!E39 -> 6256539 | K39: 0.04893749626 | L39: 0 | M39: 0
B40: Customer 8 | D40: 999971 | E40: ='6A. GA Allocation_Class A'!E40 -> 999971 | K40: 0.007821589072 | L40: 0 | M40: 0
B41: Customer 9 | D41: 7013680 | E41: ='6A. GA Allocation_Class A'!E41 -> 7013680 | K41: 0.05485971378 | L41: 0 | M41: 0
B42: Customer 10 | D42: 3468287 | E42: ='6A. GA Allocation_Class A'!E42 -> 3468287 | K42: 0.02712830242 | L42: 0 | M42: 0
B43: Customer 11 | D43: 5796244 | E43: ='6A. GA Allocation_Class A'!E43 -> 5796244 | K43: 0.04533715351 | L43: 0 | M43: 0
B44: Customer 12 | D44: 7763800 | E44: ='6A. GA Allocation_Class A'!E44 -> 7763800 | K44: =IFERROR(+D44/$D$69,0) -> 0.06072701432 | L44: =+K44*$D$26 -> 0 | M44: 0
B45: Customer 13 | D45: 5278662 | E45: ='6A. GA Allocation_Class A'!E45 -> 5278662 | K45: 0.04128872239 | L45: 0 | M45: 0
B46: Customer 14 | D46: 3940838 | E46: ='6A. GA Allocation_Class A'!E46 -> 3940838 | K46: 0.03082450935 | L46: 0 | M46: 0
B47: Customer 15 | D47: 6298192 | E47: ='6A. GA Allocation_Class A'!E47 -> 6298192 | K47: 0.04926329836 | L47: 0 | M47: 0
B48: Customer 16 | D48: 4930067 | E48: ='6A. GA Allocation_Class A'!E48 -> 4930067 | K48: 0.03856207647 | L48: 0 | M48: 0
B49: Customer 17 | D49: 3018648 | E49: ='6A. GA Allocation_Class A'!E49 -> 3018648 | K49: 0.02361130894 | L49: 0 | M49: 0
B50: Customer 18 | D50: 3108153 | E50: ='6A. GA Allocation_Class A'!E50 -> 3108153 | K50: 0.02431140057 | L50: 0 | M50: 0
B51: Customer 19 | D51: 1506099 | E51: ='6A. GA Allocation_Class A'!E51 -> 1506099 | K51: 0.01178042911 | L51: 0 | M51: 0
B52: Customer 20 | D52: 2076084 | E52: ='6A. GA Allocation_Class A'!E52 -> 2076084 | K52: 0.01623874685 | L52: 0 | M52: 0
B53: Customer 21 | D53: 5424020 | E53: ='6A. GA Allocation_Class A'!E53 -> 5424020 | K53: 0.0424256859 | L53: 0 | M53: 0
B54: Customer 22 | D54: 2583905 | E54: ='6A. GA Allocation_Class A'!E54 -> 2583905 | K54: 0.02021082923 | L54: 0 | M54: 0
B55: Customer 23 | D55: 2529573 | E55: ='6A. GA Allocation_Class A'!E55 -> 2529573 | K55: 0.01978585432 | L55: 0 | M55: 0 | N55: These two accounts (Bartek) are now combined - adjustment to be made to account 219286
B56: Customer 24 | D56: 3390659 | E56: ='6A. GA Allocation_Class A'!E56 -> 3390659 | K56: 0.02652111049 | L56: 0 | M56: 0 | N56: Account 219454 (Bartek) now combined with above account number
B57: Customer 25 | D57: 1161128 | E57: ='6A. GA Allocation_Class A'!E57 -> 1161128 | K57: 0.009082129458 | L57: 0 | M57: 0 | N57: This customer account shut down and left premise/ premise now occupied by Class B customer. Should this credit be removed and allocated to the remainder of the Class A customers?
B58: Customer 26 | D58: 2421761 | E58: ='6A. GA Allocation_Class A'!E58 -> 2421761 | K58: 0.01894256871 | L58: 0 | M58: 0
B59: Customer 27 | D59: 1568280 | E59: ='6A. GA Allocation_Class A'!E59 -> 1568280 | K59: 0.01226679745 | L59: 0 | M59: 0
B60: Customer 28 | D60: 3124881 | E60: ='6A. GA Allocation_Class A'!E60 -> 3124881 | K60: 0.02444224391 | L60: 0 | M60: 0
B61: Customer 29 | D61: 2706410 | E61: ='6A. GA Allocation_Class A'!E61 -> 2706410 | K61: 0.02116904078 | L61: 0 | M61: 0
B62: Customer 30 | D62: 3613039 | E62: ='6A. GA Allocation_Class A'!E62 -> 3613039 | K62: 0.02826052592 | L62: 0 | M62: 0
B63: Customer 31 | D63: 3605652 | E63: ='6A. GA Allocation_Class A'!E63 -> 3605652 | K63: 0.02820274616 | L63: 0 | M63: 0
B64: Customer 32 | D64: 1802628 | E64: ='6A. GA Allocation_Class A'!E64 -> 1802628 | K64: 0.01409982436 | L64: 0 | M64: 0
B65: Customer 33 | D65: 736499 | E65: ='6A. GA Allocation_Class A'!E65 -> 736499 | K65: 0.005760759592 | L65: 0 | M65: 0
B66: Customer 34 | D66: 3439510 | E66: ='6A. GA Allocation_Class A'!E66 -> 3439510 | K66: 0.02690321402 | L66: 0 | M66: 0
B67: Customer 35 | D67: 792832 | E67: ='6A. GA Allocation_Class A'!E67 -> 792832 | K67: 0.006201385948 | L67: 0 | M67: 0
B68: Customer 36 | D68: 7773748 | E68: ='6A. GA Allocation_Class A'!E68 -> 7773748 | K68: 0.06080482575 | L68: 0 | M68: 0
B69: Total | D69: =SUM(D33:D68) -> 127847550 | E69: =SUM(E33:E68) -> 127847550 | F69: =SUM(F33:F68) -> 0 | G69: =SUM(G33:G43) -> 0 | H69: =SUM(H33:H39) -> 0 | I69: 0 | J69: 0 | K69: =SUM(K33:K68) -> 1 | L69: =SUM(L33:L68) -> 0

Sheet 7B. CBR Allocation_new Class B
A1: Back to Index
B2: =+'1. Information Sheet'!B2 -> INCENTIVE REGULATION MODEL FOR 2019 FILERS
B12: This tab allocates the CBR-Class B balance to former Class A customers who contributed to the current CBR-Class B balance once switched to Class B customers. The tables below calculate specific amounts for each customer who made the transition. Consistent with both decisions for 2016 rates and EDDVAR, distributors are generally expected to settle the amount through 12 equal adjustments to bills. A one-time settlement is acceptable if the affected customer has expressed a clear preference for this approach. (see Filing Requirements section 3.2.5.2)
B14: Year of Group 1 Account Balance Last Disposed | C14: 2016
B16: Allocation of total Non-RPP consumption (kWh) between Class B and New Class B (Former Class A) customers
D17: Total | E17: 2017 | F17: 2016 | G17: 2015 | H17: 2014 | I17: 2013 | J17: 2012
B18: Total Class B Consumption for Years Since Last Disposition (Non-RPP consumption LESS WMP and Class A) | C18: A | D18: =SUM(E18:J18) -> 3596684692 | E18: ='7. CBR Calculation'!C34-'7. CBR Calculation'!E34 -> 3596684692
B19: New Class B Customer(s)' Consumption | C19: B | D19: =SUM(E19:J19) -> 5633530 | E19: =E42 -> 5633530 | F19: 0 | G19: 0 | H19: 0 | I19: 0 | J19: 0
B20: Portion of Consumption of New Class B Customers | C20: C=B/A | D20: =IFERROR(+D19/D18,0) -> 0.00156631189
B23: Allocation of Total CBR-Class B Balance $
B25: Total CBR-Class B Balance adjusted for Class A | C25: D | D25: ='7. CBR Calculation'!C17 -> -56031.71486
B26: New Class B Customer(s)' Former Class A Portion of CBR-Class B Balance attributable to Class B | C26: E=C*D | D26: 0
B27: New Class A Customer(s)' Former Class B Portion of CBR-Class B Balance | C27: F=Sheet 6A | D27: ='7A. CBR Allocation_Class A'!D26 -> 0
B28: CBR-Class B Balance to be disposed to Current Class B Customers | C28: G=D-E-F | D28: =+D25-D26-D27 -> -56031.71486 | F28: Input into Sheet 7. CBR Calculation | P28: s
B30: Allocation of CBR-Class B Balances to Former Class A Customers
B32: # of Former Class B customer(s) | E32: 2017 | F32: 2
B33: Customer | D33: Total Metered kWh Consumption for each new Class B customer for the period after becoming Class B | F33: Metered kWh Consumption for each new Class B customer for the period after becoming Class B in 2016 | K33: % of kWh | L33: Customer specific CBR-Class B allocation for the period after becoming Class B | M33: Monthly Equal Payments
B34: Customer 1 | D34: =SUM(E34:J34) -> 5633530 | E34: 5633530 | K34: =IFERROR(+D34/$D$42,0) -> 1 | L34: =+K34*$D$26 -> 0 | M34: =+L34/8 -> 0
K35: 0 | L35: =+K35*$D$26 -> 0 | M35: =+L35/12 -> 0
K36: 0 | L36: 0 | M36: 0
K37: 0 | L37: 0 | M37: 0
K38: 0 | L38: 0 | M38: 0
K39: 0 | L39: 0 | M39: 0
K40: 0 | L40: 0 | M40: 0
K41: 0 | L41: 0 | M41: 0
B42: Total | D42: =SUM(D34:D41) -> 5633530 | E42: =SUM(E34:E41) -> 5633530 | F42: =SUM(F34:F41) -> 0 | G42: =SUM(G34:G41) -> 0 | H42: =SUM(H34:H37) -> 0 | I42: 0 | J42: 0 | K42: =SUM(K34:K41) -> 1 | L42: =SUM(L34:L41) -> 0

Sheet 8. Calculation of Def-Var RR
A1: Back to Index
B2: =+'1. Information Sheet'!B2 -> INCENTIVE REGULATION MODEL FOR 2019 FILERS
B11: Input required at cell D13 only. This workshseet calculates rate riders related to the Deferral/Variance Account Disposition (if applicable) and rate riders for Account 1568. Rate Riders will not be generated for the microFIT class.
B12: Default Rate Rider Recovery Period (in months) | D12: 12
B13: Proposed Rate Rider Recovery Period (in months) | D13: 11 | E13: =IF(D13>0, "Rate Rider Recovery to be used below", "If no rate rider recovery period is proposed then the default recovery period of 12 months will be used") -> Rate Rider Recovery to be used below
D15: Total Metered kWh | E15: Metered kW or kVA | F15: Total Metered kWh less WMP consumption | G15: Total Metered kW less WMP consumption | H15: Allocation of Group 1 Account Balances to All Classes 2 | I15: Allocation of Group 1 Account Balances to Non-WMP Classes Only (if Applicable) 2 | J15: Deferral/Variance Account Rate Rider 2 | K15: Deferral/Variance Account Rate Rider for Non-WMP (if applicable) 2 | L15: Account 1568 Rate Rider
B16: Rate Class | C16: Unit | M16: Revenue Reconciliation: | O16: Revenue Reconcilation 1
B17: ='4. Billing Det. for Def-Var'!B17 -> RESIDENTIAL | C17: ='4. Billing Det. for Def-Var'!C17 -> kWh | D17: ='4. Billing Det. for Def-Var'!D17 -> 1537580329 | E17: ='4. Billing Det. for Def-Var'!E17 -> 0 | F17: ='4. Billing Det. for Def-Var'!J17 -> 1537580329 | G17: ='4. Billing Det. for Def-Var'!K17 -> 0 | H17: =SUM('5. Allocating Def-Var Balances'!G16:V16)-I17 -> -2902913.462 | J17: =IF(ISERROR(H17/D17),0,IF(OR(ISBLANK(D$13), OR(D$13=0, D$13="")), H17/D17/(D$12/12), H17/D17/(D$13/12))) -> -0.002059609262 | K17: =IF(ISERROR(I17/F17),0,IF(OR(ISBLANK(D$13), OR(D$13=0, D$13="")), I17/F17/(D$12/12), I17/F17/(D$13/12))) -> 0 | L17: =IF(ISERROR('4. Billing Det. for Def-Var'!U17/D17), 0, IF(OR(ISBLANK(D$13), OR(D$13=0, D$13="")), ('4. Billing Det. for Def-Var'!U17/D17)/(D$12/12), ('4. Billing Det. for Def-Var'!U17/D17)/(D$13/12))) -> 0.000300007353 | M17: =J17*D17 -> -3166814.686 | N17: =K17*G17 -> 0
B18: ='4. Billing Det. for Def-Var'!B18 -> GENERAL SERVICE LESS THAN 50 KW | C18: ='4. Billing Det. for Def-Var'!C18 -> kWh | D18: ='4. Billing Det. for Def-Var'!D18 -> 558828431 | E18: ='4. Billing Det. for Def-Var'!E18 -> 0 | F18: ='4. Billing Det. for Def-Var'!J18 -> 558828431 | G18: ='4. Billing Det. for Def-Var'!K18 -> 0 | H18: =SUM('5. Allocating Def-Var Balances'!G17:V17)-I18 -> -1047644.143 | J18: =IF(ISERROR(H18/D18),0,IF(OR(ISBLANK(D$13), OR(D$13=0, D$13="")), H18/D18/(D$12/12), H18/D18/(D$13/12))) -> -0.002045143834 | K18: =IF(ISERROR(I18/F18),0,IF(OR(ISBLANK(D$13), OR(D$13=0, D$13="")), I18/F18/(D$12/12), I18/F18/(D$13/12))) -> 0 | L18: =IF(ISERROR('4. Billing Det. for Def-Var'!U18/D18), 0, IF(OR(ISBLANK(D$13), OR(D$13=0, D$13="")), ('4. Billing Det. for Def-Var'!U18/D18)/(D$12/12), ('4. Billing Det. for Def-Var'!U18/D18)/(D$13/12))) -> 0.0006040624098 | M18: =J18*D18 -> -1142884.52 | N18: 0
B19: ='4. Billing Det. for Def-Var'!B19 -> GENERAL SERVICE 50 TO 4,999 KW | C19: ='4. Billing Det. for Def-Var'!C19 -> kW | D19: ='4. Billing Det. for Def-Var'!D19 -> 1751908545 | E19: ='4. Billing Det. for Def-Var'!E19 -> 4824433.383 | F19: ='4. Billing Det. for Def-Var'!J19 -> 1751908545 | G19: ='4. Billing Det. for Def-Var'!K19 -> 4824433.383 | H19: =SUM('5. Allocating Def-Var Balances'!G18:V18)-I19 -> -3277372.272 | J19: =IF(ISERROR(H19/E19),0,IF(OR(ISBLANK(D$13), OR(D$13=0, D$13="")), H19/E19/(D$12/12), H19/E19/(D$13/12))) -> -0.7410849985 | K19: =IF(ISERROR(I19/G19),0,IF(OR(ISBLANK(D$13), OR(D$13=0, D$13="")), I19/G19/(D$12/12), I19/G19/(D$13/12))) -> 0 | L19: =IF(ISERROR('4. Billing Det. for Def-Var'!U19/E19), 0, IF(OR(ISBLANK(D$13), OR(D$13=0, D$13="")), ('4. Billing Det. for Def-Var'!U19/E19)/(D$12/12), ('4. Billing Det. for Def-Var'!U19/E19)/(D$13/12))) -> 0.006621367064 | M19: =J19*E19 -> -3575315.206 | N19: 0
B20: ='4. Billing Det. for Def-Var'!B20 -> LARGE USE (1) | C20: ='4. Billing Det. for Def-Var'!C20 -> kW | D20: ='4. Billing Det. for Def-Var'!D20 -> 220526376.8 | E20: ='4. Billing Det. for Def-Var'!E20 -> 456125.738 | F20: ='4. Billing Det. for Def-Var'!J20 -> 185572728.5 | G20: ='4. Billing Det. for Def-Var'!K20 -> 338314.5322 | H20: =SUM('5. Allocating Def-Var Balances'!G19:V19)-I20 -> 36488.85258 | I20: ='5. Allocating Def-Var Balances'!I19+'5. Allocating Def-Var Balances'!N19 -> -377864.3884 | J20: =IF(ISERROR(H20/E20),0,IF(OR(ISBLANK(D$13), OR(D$13=0, D$13="")), H20/E20/(D$12/12), H20/E20/(D$13/12))) -> 0.08726984181 | K20: =IF(ISERROR(I20/G20),0,IF(OR(ISBLANK(D$13), OR(D$13=0, D$13="")), I20/G20/(D$12/12), I20/G20/(D$13/12))) -> -1.218439225 | L20: =IF(ISERROR('4. Billing Det. for Def-Var'!U20/E20), 0, IF(OR(ISBLANK(D$13), OR(D$13=0, D$13="")), ('4. Billing Det. for Def-Var'!U20/E20)/(D$12/12), ('4. Billing Det. for Def-Var'!U20/E20)/(D$13/12))) -> 0.02049052009 | M20: =J20*E20 -> 39806.021 | N20: -412215.6965
B21: ='4. Billing Det. for Def-Var'!B21 -> LARGE USE (2) | C21: ='4. Billing Det. for Def-Var'!C21 -> kW | D21: ='4. Billing Det. for Def-Var'!D21 -> 1050812632 | E21: ='4. Billing Det. for Def-Var'!E21 -> 1982813.538 | F21: ='4. Billing Det. for Def-Var'!J21 -> 307375989.7 | G21: ='4. Billing Det. for Def-Var'!K21 -> 790236.978 | H21: =SUM('5. Allocating Def-Var Balances'!G20:V20)-I21 -> 173870.1184 | I21: ='5. Allocating Def-Var Balances'!I20+'5. Allocating Def-Var Balances'!N20 -> -625880.9757 | J21: =IF(ISERROR(H21/E21),0,IF(OR(ISBLANK(D$13), OR(D$13=0, D$13="")), H21/E21/(D$12/12), H21/E21/(D$13/12))) -> 0.09566027724 | K21: -0.8640183455 | L21: =IF(ISERROR('4. Billing Det. for Def-Var'!U21/E21), 0, IF(OR(ISBLANK(D$13), OR(D$13=0, D$13="")), ('4. Billing Det. for Def-Var'!U21/E21)/(D$12/12), ('4. Billing Det. for Def-Var'!U21/E21)/(D$13/12))) -> 0.006531933806 | M21: =J21*E21 -> 189676.4928 | N21: -682779.2462
B22: ='4. Billing Det. for Def-Var'!B22 -> UNMETERED SCATTERED LOAD | C22: ='4. Billing Det. for Def-Var'!C22 -> kWh | D22: ='4. Billing Det. for Def-Var'!D22 -> 11347508.42 | E22: ='4. Billing Det. for Def-Var'!E22 -> 0 | F22: ='4. Billing Det. for Def-Var'!J22 -> 11347508.42 | G22: ='4. Billing Det. for Def-Var'!K22 -> 0 | H22: =SUM('5. Allocating Def-Var Balances'!G21:V21)-I22 -> -21228.28246 | J22: =IF(ISERROR(H22/D22),0,IF(OR(ISBLANK(D18), OR(D18=0, D18="")), H22/D22/(D17/12), H22/D22/(D$13/12))) -> -0.002040811557 | K22: =IF(ISERROR(I22/F22),0,IF(OR(ISBLANK(D$13), OR(D$13=0, D$13="")), I22/F22/(D$12/12), I22/F22/(D$13/12))) -> 0 | L22: =IF(ISERROR('4. Billing Det. for Def-Var'!U22/D22), 0, IF(OR(ISBLANK(D$13), OR(D$13=0, D$13="")), ('4. Billing Det. for Def-Var'!U22/D22)/(D$12/12), ('4. Billing Det. for Def-Var'!U22/D22)/(D$13/12))) -> 0 | M22: =J22*D22 -> -23158.12632 | N22: 0
B23: ='4. Billing Det. for Def-Var'!B23 -> SENTINEL LIGHTING | C23: ='4. Billing Det. for Def-Var'!C23 -> kW | D23: ='4. Billing Det. for Def-Var'!D23 -> 439954.0228 | E23: ='4. Billing Det. for Def-Var'!E23 -> 946.9101177 | F23: ='4. Billing Det. for Def-Var'!J23 -> 439954.0228 | G23: ='4. Billing Det. for Def-Var'!K23 -> 946.9101177 | H23: =SUM('5. Allocating Def-Var Balances'!G22:V22)-I23 -> -823.0413166 | J23: =IF(ISERROR(H23/E23),0,IF(OR(ISBLANK(D$13), OR(D$13=0, D$13="")), H23/E23/(D$12/12), H23/E23/(D$13/12))) -> -0.9482032537 | K23: 0 | L23: =IF(ISERROR('4. Billing Det. for Def-Var'!U23/E23), 0, IF(OR(ISBLANK(D$13), OR(D$13=0, D$13="")), ('4. Billing Det. for Def-Var'!U23/E23)/(D$12/12), ('4. Billing Det. for Def-Var'!U23/E23)/(D$13/12))) -> 0 | M23: =J23*E23 -> -897.8632545 | N23: 0
B24: ='4. Billing Det. for Def-Var'!B24 -> STREET LIGHTING | C24: ='4. Billing Det. for Def-Var'!C24 -> kW | D24: ='4. Billing Det. for Def-Var'!D24 -> 31193672.3 | E24: ='4. Billing Det. for Def-Var'!E24 -> 87344.171 | F24: ='4. Billing Det. for Def-Var'!J24 -> 31193672.3 | G24: ='4. Billing Det. for Def-Var'!K24 -> 87344.171 | H24: =SUM('5. Allocating Def-Var Balances'!G23:V23)-I24 -> -58355.37304 | J24: =IF(ISERROR(H24/E24),0,IF(OR(ISBLANK(D$13), OR(D$13=0, D$13="")), H24/E24/(D$12/12), H24/E24/(D$13/12))) -> -0.7288455111 | K24: 0 | L24: =IF(ISERROR('4. Billing Det. for Def-Var'!U24/E24), 0, IF(OR(ISBLANK(D$13), OR(D$13=0, D$13="")), ('4. Billing Det. for Def-Var'!U24/E24)/(D$12/12), ('4. Billing Det. for Def-Var'!U24/E24)/(D$13/12))) -> 1.597464833 | M24: =J24*E24 -> -63660.40695 | N24: 0
M27: =SUM(M17:M26) -> -7743248.294 | N27: =SUM(N17:N26) -> -1094994.943 | O27: =SUM(M27:N27) -> -8838243.237
O28: =O27-'3. Continuity Schedule'!CN41 -> -736520.6281
B30: 1 When calculating the revenue reconciliation for distributors with Class A customers, the balances of sub-account 1580-CBR Class A and B will not be taken into consideration since the rate riders, if any, are calculated outside of the model.
B31: 2 Only for rate classes with WMP customers are the Deferral/Variance Account Rate Riders for Non-WMP (column H and J) calculated separately. For all rate classes without WMP customers, balances in account 1580 and 1588 are included in column H and disposed through a combined Deferral/Variance Account and Rate Rider.

Sheet Sheet1
